Cogmind - Beta 10.2 --- EXPLORER MODE // 2021.05.27 @ 03:55:28 // Winter2019/RPGLIKE Player: H_ Result: Destroyed by G-73 Enforcer with Phase Gun Performance ------------- Evolutions (9) 4500 Regions Visited (31) 6200 Robots Destroyed (418) 2090 Value Destroyed (17488) 17488 Prototype IDs (72) 1440 Alien Tech Used (1) 200 Bonus (5229) 5229 TOTAL SCORE: 37147 Bonus ------- High Alert Combat Kills 822 Follower Combat Kills 3443 Entered Garrisons 1000 Used RIF Installer 2000 Aligned with FarCom 300 Met Data Miner 300 Friendly Fire -2636 Cogmind --------- Core Integrity 0/1000 Matter 24/400 Energy 232/240 System Corruption 5% Temperature Cool (0) Movement Rolling (100) Location -1/Garrison Parts ------- > --- POWER (2) -------- Micro Fission Core Micro Fission Core > --- PROPULSION (4) --- Armored Huge Wheel Armored Huge Wheel > --- UTILITY (10) ----- Long-range Terrain Scanner Experimental Shock Absorption System Relay Coupler [NC] (98) Relay Coupler [Grunt] (4) Relay Coupler [Duelist] (69) Relay Coupler [Hunter] (7) Drone Bay (0/2) Drone Bay (0/2) Drone Bay (0/2) Drone Bay (0/2) > --- WEAPON (4) ------- Enhanced Quantum Rifle Long-range Missile Launcher Advanced Remote Datajack Force Lance > --- INVENTORY (7) ---- Centrium Wheel Advanced ECM Suite Cloaking Device Point Defense Array Relay Coupler [NC] (88) Peak State ------------ > --- POWER ------------ Micro Fission Core Micro Fission Core > --- PROPULSION ------- Armored Huge Wheel Armored Huge Wheel > --- UTILITY ---------- Coolant Network Advanced Visual Processing Unit Long-range Terrain Scanner Experimental Shock Absorption System Point Defense Array Relay Coupler [NC] Relay Coupler [Grunt] Relay Coupler [Duelist] Relay Coupler [Hunter] > --- WEAPON ----------- Enhanced Quantum Rifle Proton Missile Launcher Remote Datajack Force Lance > --- INVENTORY -------- Advanced ECM Suite Cloaking Device Phasing AFG Long-range Missile Launcher [Rating: 108] Favorites ----------- Power Micro Fission Core Engine Light Angular Momentum Engine Power Core Micro Fission Core Propulsion Armored Huge Wheel Wheel Armored Huge Wheel Utility Long-range Terrain Scanner Device Long-range Terrain Scanner Storage Improved Energy Well Processor Improved Melee Analysis Suite Hackware Relay Coupler [Duelist] Protection Medium Reactive Plating Weapon Remote Datajack Energy Gun Enhanced Quantum Rifle Energy Cannon Cooled Particle Cannon Launcher Proton Missile Launcher Special Weapon Remote Datajack Slashing Weapon Greatsword Piercing Weapon Lance Build | -11 -10 -10 -10 -9 -8 -8 -7 -7 -7 -7 -7 -7 -7 -7 -6 -6 -6 -6 -6 -6 -6 -5 -5 -5 -5 -5 -4 -3 -2 -1 -1 ------- Run | Scr Mat Min Exi Min Mat Gar Fac Was Fac Gar Fac Low Low Dat Pro Fac Gar Fac Low Low Zio Pro Fac Was Fac Gar Fac Res Res Acc Gar Slots Evolved 16 | . . . 5 3 4 1 1 . 2 . . . . . . . . . . . . . . . . . . . . . . Power 1 | . . . 1 . . . . . . . . . . . . . . . . . . . . . . . . . . . . Propulsion 3 | . . . 1 2 . . . . . . . . . . . . . . . . . . . . . . . . . . . Utility 9 | . . . 2 1 2 1 1 . 2 . . . . . . . . . . . . . . . . . . . . . . Weapon 3 | . . . 1 . 2 . . . . . . . . . . . . . . . . . . . . . . . . . . Parts Attached 267 | . . . 1 26 24 16 36 2 52 22 27 1 1 7 6 . 2 3 1 1 6 1 . 3 . 1 2 2 6 12 6 Power 33 | . . . . 3 5 1 7 . 10 1 4 . 1 . 1 . . . . . . . . . . . . . . . . Engine 19 | . . . . 3 4 . 5 . 6 1 . . . . . . . . . . . . . . . . . . . . . Core 14 | . . . . . 1 1 2 . 4 . 4 . 1 . 1 . . . . . . . . . . . . . . . . Reactor . | . . . . . . . . . . . . . . . . . . . . . . . . . . . . . . . . Propulsion 32 | . . . . 8 2 4 11 . 7 . . . . . . . . . . . . . . . . . . . . . . Treads . | . . . . . . . . . . . . . . . . . . . . . . . . . . . . . . . . Leg . | . . . . . . . . . . . . . . . . . . . . . . . . . . . . . . . . Wheel 32 | . . . . 8 2 4 11 . 7 . . . . . . . . . . . . . . . . . . . . . . Hover . | . . . . . . . . . . . . . . . . . . . . . . . . . . . . . . . . Flight . | . . . . . . . . . . . . . . . . . . . . . . . . . . . . . . . . Utility 131 | . . . . 5 8 8 9 1 27 15 15 . . 3 4 . 2 . 1 1 4 . . 3 . 1 2 1 5 10 6 Device 79 | . . . . 4 2 5 7 . 15 8 7 . . 2 4 . . . 1 . 3 . . 1 . . 1 . 5 9 5 Storage 2 | . . . . . . . . . . . . . . 1 . . 1 . . . . . . . . . . . . . . Processor 11 | . . . . 1 2 1 . . 2 . 3 . . . . . . . . . . . . 1 . . 1 . . . . Hackware 22 | . . . . . . 2 . . 7 5 5 . . . . . 1 . . . . . . . . 1 . . . . 1 Protection 17 | . . . . . 4 . 2 1 3 2 . . . . . . . . . 1 1 . . 1 . . . 1 . 1 . Artifact . | . . . . . . . . . . . . . . . . . . . . . . . . . . . . . . . . Weapon 71 | . . . 1 10 9 3 9 1 8 6 8 1 . 4 1 . . 3 . . 2 1 . . . . . 1 1 2 . Energy Gun 4 | . . . . . . . . . . . 2 . . . . . . . . . 1 . . . . . . . 1 . . Energy Cannon 19 | . . . . 3 4 1 5 . 2 2 1 . . . 1 . . . . . . . . . . . . . . . . Ballistic Gun . | . . . . . . . . . . . . . . . . . . . . . . . . . . . . . . . . Ballistic Cannon . | . . . . . . . . . . . . . . . . . . . . . . . . . . . . . . . . Launcher 20 | . . . . 3 . . . 1 2 3 3 1 . 2 . . . 3 . . 1 . . . . . . . . 1 . Special Weapon 18 | . . . 1 1 4 2 3 . 2 1 1 . . 1 . . . . . . . 1 . . . . . . . 1 . Impact Weapon . | . . . . . . . . . . . . . . . . . . . . . . . . . . . . . . . . Slashing Weapon 7 | . . . . 3 1 . 1 . 2 . . . . . . . . . . . . . . . . . . . . . . Piercing Weapon 3 | . . . . . . . . . . . 1 . . 1 . . . . . . . . . . . . . 1 . . . Special Melee Weapon . | . . . . . . . . . . . . . . . . . . . . . . . . . . . . . . . . Unidentified Prototypes 11 | . . . . 1 . . . . 2 . 2 . . 1 . . . . 1 . 1 1 . . . . . . 1 1 . Parts Lost 8 | . . . . . . . . . 1 . . . . . . . 1 1 . . 1 1 . . . . . 2 . 1 . Power . | . . . . . . . . . . . . . . . . . . . . . . . . . . . . . . . . Propulsion . | . . . . . . . . . . . . . . . . . . . . . . . . . . . . . . . . Utility 7 | . . . . . . . . . 1 . . . . . . . 1 1 . . . 1 . . . . . 2 . 1 . Weapon 1 | . . . . . . . . . . . . . . . . . . . . . 1 . . . . . . . . . . Highest Loss Streak 2 | . . . . . . . . . 1 . . . . . . . 1 1 . . 1 1 . . . . . 2 . 1 . Average Slot Usage (%) 84 | . . . . 73 92 83 89 100 91 84 86 90 90 89 89 90 85 82 79 79 74 68 65 68 80 84 84 83 82 85 89 Engine 3 | . . . . 14 9 1 5 11 8 10 1 . . . . . . . . . . . . . . . . . . . . Core 6 | . . . . . 2 10 5 . 1 . 8 10 10 10 10 10 10 10 10 10 10 10 10 10 10 10 10 10 10 10 10 Wheel 13 | . . . . 28 25 23 21 22 16 10 10 10 10 10 10 10 10 10 10 10 10 10 10 10 10 10 10 10 10 10 10 Device 16 | . . . . 10 16 12 16 22 21 16 15 20 20 19 19 20 15 13 14 14 11 5 5 5 10 10 11 13 12 15 29 Processor 4 | . . . . 2 7 7 5 5 1 5 2 15 15 15 15 15 5 5 5 . . . . 1 5 5 5 5 5 5 . Hackware 15 | . . . . . . 1 11 11 17 19 27 10 10 10 10 10 14 15 15 15 15 15 15 15 15 19 20 20 20 20 20 Protection 5 | . . . . . 6 5 3 5 6 7 5 5 5 5 5 5 5 4 . 4 8 9 5 7 10 10 8 4 5 4 . Energy Cannon 5 | . . . . 9 9 11 9 11 5 3 5 5 5 1 4 5 5 5 5 5 . . . . . . . . . . . Launcher 3 | . . . . 1 . . . 3 . 1 1 5 5 10 5 5 5 5 5 5 9 10 10 10 10 10 10 10 8 5 5 Special Weapon 4 | . . . . . 5 1 5 1 4 4 4 5 5 2 5 5 5 5 5 5 3 4 5 5 5 5 5 5 5 5 5 Slashing Weapon 2 | . . . . 4 5 5 4 5 5 5 3 . . . . . . . . . . . . . . . . . . . . Piercing Weapon 2 | . . . . . . . . . . . 1 5 5 5 5 5 5 5 5 5 5 5 5 5 5 5 5 5 5 5 5 Naked Turns 447 | . 56 92 280 19 . . . . . . . . . . . . . . . . . . . . . . . . . . . Heaviest Build 86 | . . . . 21 57 50 52 67 67 69 61 60 60 61 63 63 67 64 51 58 86 60 53 57 57 57 57 57 77 64 64 Greatest Support 71 | 3 3 3 8 57 45 51 69 69 69 61 61 61 61 61 61 61 61 61 61 61 61 61 61 61 61 61 66 66 66 66 71 Greatest Overweight (x) 1 | . . . . . 1 1 1 . 1 1 . . . . 1 1 1 1 . . 1 . . . . . . . 1 . . Average Overweight (x) . | . . . . . . . . . . . . . . . . 1 1 . . . . . . . . . . . . . . Largest Inventory Capacity 7 | . . . 3 3 4 6 6 6 6 6 6 6 6 6 6 6 6 6 6 6 6 6 6 6 6 7 7 7 7 7 7 Average Capacity 5 | . . . 2 3 3 5 6 6 6 6 6 6 6 6 6 6 6 6 6 6 6 6 6 6 6 6 7 7 7 7 7 Most Carried 7 | . . . 1 3 4 6 6 6 6 6 6 6 6 6 6 5 5 5 6 6 6 6 4 5 3 4 4 5 6 7 5 Average Carried 4 | . . . . 2 1 5 3 5 4 5 5 6 6 5 5 5 3 3 3 4 3 4 4 3 3 3 3 3 2 5 4 Final Capacity 7 | . . . 3 3 4 6 6 6 6 6 6 6 6 6 6 6 6 6 6 6 6 6 6 6 6 7 7 7 7 7 7 Final Carried 6 | . . . 1 3 2 5 4 6 6 4 6 6 6 6 5 5 3 4 4 5 5 4 4 3 3 3 3 5 6 5 5 Class Distribution -------------------- 59% | Hacker-Assassin 14% | Wizard-Assassin 12% | Wizard-Gladiator 4% | Hacker-Gladiator 3% | Commander-Assassin 3% | Hacker-Mutant Dominant Class ---------------- Hacker-Mutant | -10/Materials Hacker-Mutant | -10/Mines Hacker-Mutant | -10/Exiles Hacker-Mutant | -9/Mines Hacker-Assassin | -8/Materials Hacker-Assassin | -8/Garrison Hacker-Assassin | -7/Factory Hacker-Assassin | -7/Waste Wizard-Gladiator | -7/Factory Commander-Assassin | -7/Garrison Wizard-Gladiator | -7/Factory Hacker-Assassin | -7/Lower Caves Hacker-Assassin | -7/Lower Caves Hacker-Assassin | -7/Data Miner Hacker-Assassin | -6/Proximity Caves Hacker-Assassin | -6/Factory Hacker-Assassin | -6/Garrison Hacker-Assassin | -6/Factory Hacker-Assassin | -6/Lower Caves Hacker-Assassin | -6/Lower Caves Hacker-Assassin | -6/Zion Hacker-Assassin | -5/Proximity Caves Hacker-Assassin | -5/Factory Hacker-Assassin | -5/Waste Hacker-Assassin | -5/Factory Hacker-Assassin | -5/Garrison Hacker-Assassin | -4/Factory Wizard-Assassin | -3/Research Wizard-Assassin | -2/Research Wizard-Assassin | -1/Access Wizard-Assassin | -1/Garrison Resources | -11 -10 -10 -10 -9 -8 -8 -7 -7 -7 -7 -7 -7 -7 -7 -6 -6 -6 -6 -6 -6 -6 -5 -5 -5 -5 -5 -4 -3 -2 -1 -1 ----------- Run | Scr Mat Min Exi Min Mat Gar Fac Was Fac Gar Fac Low Low Dat Pro Fac Gar Fac Low Low Zio Pro Fac Was Fac Gar Fac Res Res Acc Gar Matter Collected 7382 | . . 150 60 270 300 175 375 293 661 430 300 60 15 100 145 65 65 60 426 1296 1028 65 62 218 . 145 133 . 53 375 57 Remotely . | . . . . . . . . . . . . . . . . . . . . . . . . . . . . . . . . Salvage Created 16935 | . . . . 602 742 1721 1477 1039 2173 227 1914 735 493 268 654 646 228 367 70 886 802 152 292 742 . 93 43 . 87 188 294 Parts 853 | . . . . 39 58 83 71 6 97 19 105 26 21 8 31 42 8 23 7 30 87 11 12 3 . 7 7 2 14 23 13 Haulers Intercepted 12 | . . . . . 2 . 1 . 6 . 2 . . . . . . . . . . . 1 . . . . . . . . Recyclers Shooed 5 | . . . . 2 . . 1 . 2 . . . . . . . . . . . . . . . . . . . . . . Parts Field Recycled . | . . . . . . . . . . . . . . . . . . . . . . . . . . . . . . . . Retrieved Matter . | . . . . . . . . . . . . . . . . . . . . . . . . . . . . . . . . Parts Self-Destructed . | . . . . . . . . . . . . . . . . . . . . . . . . . . . . . . . . Prevented . | . . . . . . . . . . . . . . . . . . . . . . . . . . . . . . . . Kills | -11 -10 -10 -10 -9 -8 -8 -7 -7 -7 -7 -7 -7 -7 -7 -6 -6 -6 -6 -6 -6 -6 -5 -5 -5 -5 -5 -4 -3 -2 -1 -1 ------- Run | Scr Mat Min Exi Min Mat Gar Fac Was Fac Gar Fac Low Low Dat Pro Fac Gar Fac Low Low Zio Pro Fac Was Fac Gar Fac Res Res Acc Gar Combat Hostiles Destroyed 265 | . . . . 6 20 37 20 6 24 12 30 10 9 2 9 9 5 8 3 10 6 3 6 2 . 4 . 1 9 6 8 Melee 93 | . . . . 1 11 8 5 . 7 4 16 8 8 1 3 . . 1 . 5 3 3 . . . 3 . 1 1 4 . Guns 2 | . . . . . . . . . . . . . . . . . . . . . . . . . . . . . . 2 . Cannons 91 | . . . . 3 9 24 13 . 14 3 13 2 1 . 3 . 2 . 1 3 . . . . . . . . . . . AOE 67 | . . . . 2 . 2 . 6 2 5 . . . . 2 7 3 7 2 2 3 . 5 2 . 1 . . 8 . 8 Classes Destroyed 21 | . . . . 6 6 1 2 1 . . . 1 1 . . . . . . . 3 . . . . . . . . . . Worker 20 | . . . . 3 . . . . 8 . 5 . . . . 1 . 2 . . . . . . . . 1 . . . . Builder 6 | . . . . 3 . . . . . . 2 . . . . . . . . . . . . . . . . . 1 . . Tunneler 7 | . . . . 4 . . . . . . 1 . . . . 2 . . . . . . . . . . . . . . . Hauler 12 | . . . . . 2 . 1 . 6 . 2 . . . . . . . . . . . 1 . . . . . . . . Recycler 18 | . . . . 3 . . 3 . 7 . 4 . . . . 1 . . . . . . . . . . . . . . . Minesweeper 2 | . . . . . . . . . . . . . 1 . . . . . . 1 . . . . . . . . . . . Operator 4 | . . . . . . . 1 . 2 . . . . . . . . 1 . . . . . . . . . . . . . Watcher 18 | . . . . . 5 . 4 . 4 . 4 . . . . . . . . . . . . . . . 1 . . . . Swarmer 59 | . . . . . 4 12 . . 1 8 2 1 3 . 2 1 2 2 3 4 . . . . . 1 . . 7 3 3 Grunt 105 | . . . . 5 4 16 11 . 10 3 16 5 5 . 3 6 3 5 . 3 . 1 4 . . 3 . . . . 2 Brawler 5 | . . . . . 1 . . . 1 . . 1 . . 1 . . . . 1 . . . . . . . . . . . Duelist 5 | . . . . 1 . . 1 . . . . . . . 2 . . . . 1 . . . . . . . . . . . Sentry 41 | . . . . . 9 6 3 . 5 2 9 1 1 . 1 . . . . 1 . 1 1 . . . . 1 . . . Specialist 3 | . . . . . . 3 . . . . . . . . . . . . . . . . . . . . . . . . . Hunter 14 | . . . . . 2 . 1 . 3 1 . 1 . . 1 2 . 1 . . . 1 . . . . . . 1 . . Programmer 20 | . . . . . . . 4 . 4 1 3 . . . . . . . . . . . 1 . . . . . 1 3 3 Compactor 8 | . . . . . . . . 6 . . . . . . . . . . . . . . . 2 . . . . . . . Enhanced Grunt 2 | . . . . . . . . . . . . . . 2 . . . . . . . . . . . . . . . . . Zionite 56 | . . . . . . . . . . . . . . . . . . . . . 56 . . . . . . . . . . Decomposer 3 | . . . . . . . . . . . . . . . . . . . . 3 . . . . . . . . . . . Packrat 1 | . . . . . . . . . . . . . . . . . . . . . . 1 . . . . . . . . . Tinkerer 3 | . . . . . . . . . . . . . . . . . . . . . 3 . . . . . . . . . . Surgeon 1 | . . . . . . . . . . . . . . . . . . . . . 1 . . . . . . . . . . Wasp 1 | . . . . . . . . . . . . . . . . . . . . . 1 . . . . . . . . . . Thug 3 | . . . . . . . . . 2 . . . . . . . . . . 1 . . . . . . . . . . . Savage 2 | . . . . . . . . . . . . . . . . . . . . 1 1 . . . . . . . . . . Mutant 6 | . . . . . . . . . . . . 1 . . . . . . . 1 4 . . . . . . . . . . Best Kill Streak 12 | . . . . 2 6 8 5 6 5 5 4 6 3 1 4 9 5 8 3 3 12 1 4 1 . 2 1 1 9 2 5 Combat Bots Only 9 | . . . . 2 3 8 5 6 5 5 4 6 3 1 4 7 5 5 3 3 2 1 4 1 . 2 . 1 9 2 5 Max Kills in Single Turn 5 | . . . . 2 1 1 1 2 4 3 1 1 1 1 2 2 1 4 2 1 3 1 2 1 . 1 1 1 5 1 2 Gunslinging . | . . . . . . . . . . . . . . . . . . . . . . . . . . . . . . . . Exploded 5 | . . . . 2 . 1 . 2 1 3 . . . . 2 2 1 3 2 1 1 . 2 1 . 1 . . 5 . 2 Melee 1 | . . . . 1 1 1 1 . 1 1 1 1 1 1 1 . . 1 . 1 1 1 . . . 1 . 1 1 1 . Uniques/NPCs Destroyed 1 | . . . . . . . . . . . . . . . . . . . . . 1 . . . . . . . . . . Imprinter (-6/Zion) Combat | -11 -10 -10 -10 -9 -8 -8 -7 -7 -7 -7 -7 -7 -7 -7 -6 -6 -6 -6 -6 -6 -6 -5 -5 -5 -5 -5 -4 -3 -2 -1 -1 -------- Run | Scr Mat Min Exi Min Mat Gar Fac Was Fac Gar Fac Low Low Dat Pro Fac Gar Fac Low Low Zio Pro Fac Was Fac Gar Fac Res Res Acc Gar Damage Taken 13202 | . 117 30 . 108 460 798 939 1 1105 585 844 403 149 712 578 368 208 210 21 305 1079 799 294 . . 347 30 490 736 942 544 Core 8609 | . 117 30 . 83 293 472 598 . 716 359 528 272 104 559 403 253 134 151 18 221 684 448 201 . . 206 17 335 432 559 416 Absorbed by Shields . | . . . . . . . . . . . . . . . . . . . . . . . . . . . . . . . . Redirected to Core 7332 | . . . . 76 250 411 514 . 655 312 457 196 89 471 318 231 113 122 9 185 556 393 201 . . 173 17 257 392 518 416 Core Remaining (%) 75 | 100 . . . 100 . 92 . . . . . . . . 57 . . . . . . 25 . . . 96 94 61 54 . . Volleys Fired 750 | . . . . 28 44 103 89 27 87 41 58 12 9 4 23 25 21 7 9 19 48 6 18 9 . 10 2 . 16 15 20 Largest 3 | . . . . 1 1 2 2 1 1 1 2 1 1 3 1 2 1 1 1 1 1 1 1 1 . 1 1 . 1 1 2 Hottest 149 | . . . . 69 80 149 149 90 90 90 90 90 90 117 90 90 90 90 90 90 90 43 43 43 . 43 43 . 94 94 137 Shots Fired 771 | . . . . 28 44 118 90 27 87 41 59 12 9 7 23 26 21 7 9 19 47 6 18 9 . 10 2 . 16 15 21 Gun 6 | . . . . . . . . . . . . . . . . . . . . . . . . . . . . . 1 4 1 Cannon 438 | . . . . 26 34 117 67 6 62 15 49 8 7 . 8 13 7 2 8 9 . . . . . . . . . . . Launcher 205 | . . . . 2 . . . 21 2 6 1 1 . 6 11 13 14 4 1 10 47 2 17 9 . 10 2 . 4 2 20 Special 122 | . . . . . 10 1 23 . 23 20 9 3 2 1 4 . . 1 . . . 4 1 . . . . . 11 9 . Kinetic . | . . . . . . . . . . . . . . . . . . . . . . . . . . . . . . . . Thermal 305 | . . . . . 10 28 71 6 58 15 49 8 7 . 8 13 7 2 8 9 . . . . . . . . 1 4 1 Explosive 134 | . . . . 2 . . . 21 2 6 . . . . . . . . . . 44 2 13 9 . 7 2 . 4 2 20 Electromagnetic 230 | . . . . 26 24 89 16 . 4 . 1 1 . 6 11 13 14 4 1 10 3 . 4 . . 3 . . . . . Robot Hit Streak 69 | . . . . 14 13 47 59 42 69 32 17 12 20 22 11 17 19 12 16 11 13 3 13 15 . 3 . . 8 8 18 Robot Miss Streak 2 | . . . . 1 1 1 1 1 1 1 1 . . 1 1 2 1 . 1 1 1 1 . 1 . 1 1 . 2 1 1 Penetration Max . | . . . . . . . . . . . . . . . . . . . . . . . . . . . . . . . . Secondary Targets . | . . . . . . . . . . . . . . . . . . . . . . . . . . . . . . . . Shots Hit Robots 993 | . . . . 39 78 103 100 14 136 44 107 34 32 10 27 20 10 9 12 41 67 16 10 6 . 12 3 5 15 24 19 Core Hits 633 | . . . . 24 28 41 40 17 62 30 41 15 14 9 27 26 8 14 5 27 87 9 17 3 . 8 3 3 22 12 41 Critical Hits 30 | . . . . 1 3 2 5 . 1 . 5 2 2 . . . . . . 3 6 . . . . . . . . . . Critical Kills 11 | . . . . . . . 2 . . . 3 . 1 . . . . . . . 5 . . . . . . . . . . Critical Parts Destroyed 18 | . . . . 1 3 2 3 . 1 . 1 2 1 . . . . . . 3 1 . . . . . . . . . . Melee Attacks 518 | . . . . 15 40 23 28 . 70 22 68 23 24 4 12 1 . 3 4 30 50 12 . . 1 17 8 12 23 26 2 Impact . | . . . . . . . . . . . . . . . . . . . . . . . . . . . . . . . . Slashing 242 | . . . . 15 40 23 28 . 70 22 44 . . . . . . . . . . . . . . . . . . . . Piercing 276 | . . . . . . . . . . . 24 23 24 4 12 1 . 3 4 30 50 12 . . 1 17 8 12 23 26 2 Sneak Attacks 67 | . . . . 7 3 9 1 . 19 . 12 1 4 1 . . . . . 4 2 1 . . . . 1 . 2 . . Combat Hostiles 6 | . . . . . . 1 . . 1 . . 1 3 . . . . . . . . . . . . . . . . . . Follow-up Attacks . | . . . . . . . . . . . . . . . . . . . . . . . . . . . . . . . . Damage Inflicted 61023 | . . . . 1805 2552 4117 3219 3174 8429 1942 6165 2097 1897 580 2204 1752 1001 1448 819 2378 5530 756 1132 1376 . 619 273 183 1578 690 3307 Guns 171 | . . . . . . . . . . . . . . . . . . . . . . . . . . . . . 31 109 31 Cannons 14873 | . . . . 594 982 2342 2486 326 2802 485 2147 393 192 . 351 506 438 183 301 345 . . . . . . . . . . . Explosions 20952 | . . . . 196 . 124 . 2848 1071 778 . 28 . 335 977 1246 563 1157 61 532 3472 250 1132 1376 . 301 56 . 1129 44 3276 Melee 24765 | . . . . 1015 1570 1651 503 . 4556 679 3986 1676 1705 245 876 . . 108 457 1501 2058 506 . . . 318 217 183 418 537 . Ramming 32 | . . . . . . . . . . . 32 . . . . . . . . . . . . . . . . . . . . Kinetic . | . . . . . . . . . . . . . . . . . . . . . . . . . . . . . . . . Thermal 13507 | . . . . 81 257 524 2214 326 3077 485 2147 393 192 . 351 760 438 1198 343 345 . . 205 . . . . . 31 109 31 Explosive 14225 | . . . . 115 . . . 2848 . 778 . . . . . . . . . . 3395 250 835 1376 . 123 56 . 1129 44 3276 Electromagnetic 8494 | . . . . 594 725 1942 502 . 796 . . 28 . 335 977 992 563 142 19 532 77 . 92 . . 178 . . . . . Impact . | . . . . . . . . . . . . . . . . . . . . . . . . . . . . . . . . Slashing 12538 | . . . . 1015 1570 1651 503 . 4556 679 2564 . . . . . . . . . . . . . . . . . . . . Piercing 12227 | . . . . . . . . . . . 1422 1676 1705 245 876 . . 108 457 1501 2058 506 . . . 318 217 183 418 537 . Highest Corruption 5 | . . . . . . . . . 2 1 . . . . . . . . . . . . . . . . . . . 2 5 Average Corruption 1 | . . . . . . . . . 1 1 . . . . . . . . . . . . . . . . . . . 2 3 Corruption Purged 6 | . . . . . . . . . 5 1 . . . . . . . . . . . . . . . . . . . . . Effects 7 | . . . . . . . . . 3 1 . . . . . . . . . . . . . . . . . . . . 3 Message Errors 2 | . . . . . . . . . 1 1 . . . . . . . . . . . . . . . . . . . . . Matter Fused 2 | . . . . . . . . . . . . . . . . . . . . . . . . . . . . . . . 2 Energy Discharges 1 | . . . . . . . . . 1 . . . . . . . . . . . . . . . . . . . . . . Data Loss (minor) 1 | . . . . . . . . . 1 . . . . . . . . . . . . . . . . . . . . . . Targeting Errors 1 | . . . . . . . . . . . . . . . . . . . . . . . . . . . . . . . 1 Overload Shots 127 | . . . . . . . 18 6 38 5 29 8 2 . 5 2 6 2 3 2 1 . . . . . . . . . . Effects 11 | . . . . . . . 1 1 4 1 . . . . 1 1 . . . . 2 . . . . . . . . . . Energy Bleed 2 | . . . . . . . 1 . 1 . . . . . . . . . . . . . . . . . . . . . . Heat Surge 3 | . . . . . . . . 1 1 . . . . . 1 . . . . . . . . . . . . . . . . Short Circuit 4 | . . . . . . . . . 2 1 . . . . . 1 . . . . . . . . . . . . . . . Meltdown 2 | . . . . . . . . . . . . . . . . . . . . . 2 . . . . . . . . . . Overflow Damage 6191 | . . . . 289 170 325 257 . 1463 101 1137 464 436 1 223 52 152 199 147 168 125 16 12 . . 46 . . 147 28 233 Projectiles 1305 | . . . . 51 20 47 254 . 293 14 255 . 3 . . 35 152 88 20 73 . . . . . . . . . . . Explosions 586 | . . . . . . . . . 67 2 . . . . . 17 . 111 . 18 99 . 12 . . 11 . . 16 . 233 Melee 4300 | . . . . 238 150 278 3 . 1103 85 882 464 433 1 223 . . . 127 77 26 16 . . . 35 . . 131 28 . Knockbacks . | . . . . . . . . . . . . . . . . . . . . . . . . . . . . . . . . Impact . | . . . . . . . . . . . . . . . . . . . . . . . . . . . . . . . . Kinetic . | . . . . . . . . . . . . . . . . . . . . . . . . . . . . . . . . Secondary . | . . . . . . . . . . . . . . . . . . . . . . . . . . . . . . . . Self-Inflicted Damage 257 | . . . . . . 15 . 1 . 69 16 13 . . . 6 1 19 . . 60 . . . . 22 . . 35 . . Shots 19 | . . . . . . 1 . 1 . 8 . 1 . . . 2 1 1 . . 2 . . . . 1 . . 1 . . Rammed 1 | . . . . . . . . . . . 1 . . . . . . . . . . . . . . . . . . . . Targets Rammed 1 | . . . . . . . . . . . 1 . . . . . . . . . . . . . . . . . . . . Kicked . | . . . . . . . . . . . . . . . . . . . . . . . . . . . . . . . . Crushed . | . . . . . . . . . . . . . . . . . . . . . . . . . . . . . . . . Highest Temperature 323 | . . . . 149 228 323 240 192 195 114 179 169 68 11 77 20 39 10 9 18 6 7 . . . . . . 12 24 6 Average Temperature 67 | . . . . 45 70 92 80 91 49 38 59 56 28 6 26 12 22 8 9 7 4 7 . . . . . . 9 13 4 Received Heat Transfer 4761 | . 36 . . 63 175 405 627 . 462 192 507 200 90 144 291 132 99 99 9 129 213 207 75 . . 180 9 174 135 63 45 Effects 5 | . . . . . . 4 1 . . . . . . . . . . . . . . . . . . . . . . . . Interference 4 | . . . . . . 3 1 . . . . . . . . . . . . . . . . . . . . . . . . Damage (minor) 1 | . . . . . . 1 . . . . . . . . . . . . . . . . . . . . . . . . . Siege Activations . | . . . . . . . . . . . . . . . . . . . . . . . . . . . . . . . . Robots Corrupted 16 | . . . . . 1 4 2 . 1 . . . . 1 2 2 . . . 2 . . 1 . . . . . . . . Combat Hostiles 9 | . . . . . . 3 1 . . . . . . 1 1 2 . . . . . . 1 . . . . . . . . Parts Fried 48 | . . . . 4 5 13 5 . 4 . 1 . . 2 5 2 1 . . 5 . . . . . 1 . . . . . Impact Corruptions 1 | . . . . . . . . . . . 1 . . . . . . . . . . . . . . . . . . . . Robots Melted 2 | . . . . . . . 1 . 1 . . . . . . . . . . . . . . . . . . . . . . Combat Hostiles 2 | . . . . . . . 1 . 1 . . . . . . . . . . . . . . . . . . . . . . Parts Melted 27 | . . . . . 1 1 10 . 6 1 1 1 1 . . 1 . 1 . 1 2 . . . . . . . . . . Heat Transferred 13793 | . . . . 100 500 850 3173 300 2703 509 1942 350 211 . 311 857 287 750 311 322 . . 150 . . . . . 37 111 19 Parts Sabotaged . | . . . . . . . . . . . . . . . . . . . . . . . . . . . . . . . . Parts Stolen . | . . . . . . . . . . . . . . . . . . . . . . . . . . . . . . . . Parts Stripped . | . . . . . . . . . . . . . . . . . . . . . . . . . . . . . . . . Power Chain Reactions 15 | . . . . 1 . 2 . . 4 . . . . 1 . 4 . 2 1 . . . . . . . . . . . . Missiles Intercepted . | . . . . . . . . . . . . . . . . . . . . . . . . . . . . . . . . Alert | -11 -10 -10 -10 -9 -8 -8 -7 -7 -7 -7 -7 -7 -7 -7 -6 -6 -6 -6 -6 -6 -6 -5 -5 -5 -5 -5 -4 -3 -2 -1 -1 ------- Run | Scr Mat Min Exi Min Mat Gar Fac Was Fac Gar Fac Low Low Dat Pro Fac Gar Fac Low Low Zio Pro Fac Was Fac Gar Fac Res Res Acc Gar Peak Influence 1628 | . 70 34 . 133 236 1628 666 96 505 830 426 . . . . 215 262 405 . . . . 431 109 60 467 245 131 334 299 368 Initial 634 | . . 19 . . 5 41 634 32 . 58 323 . . . . . 116 102 . . . . . 31 58 32 181 92 55 17 9 Average 189 | . 20 19 . 37 79 923 274 58 122 554 90 . . . . 114 220 209 . . . . 149 86 58 262 218 96 137 83 116 Maximum Alert Level 5 | . . . . . 1 5 2 . 2 3 2 . . . . 1 1 2 . . . . 2 . . 2 1 . 1 1 1 Low Security (%) 70 | 100 100 100 . 100 93 15 55 100 78 7 87 . . . . 64 22 62 . . . . 62 100 100 36 9 100 63 82 65 Level 1 16 | . . . . . 6 7 13 . 18 20 10 . . . . 35 77 17 . . . . 34 . . 38 90 . 36 17 34 Level 2 8 | . . . . . . 17 31 . 3 41 2 . . . . . . 19 . . . . 2 . . 24 . . . . . Level 3 2 | . . . . . . 16 . . . 31 . . . . . . . . . . . . . . . . . . . . . Level 4 1 | . . . . . . 33 . . . . . . . . . . . . . . . . . . . . . . . . . Level 5 . | . . . . . . 9 . . . . . . . . . . . . . . . . . . . . . . . . . High Security . | . . . . . . . . . . . . . . . . . . . . . . . . . . . . . . . . Max Security . | . . . . . . . . . . . . . . . . . . . . . . . . . . . . . . . . Squads Dispatched 82 | . 1 . . 1 4 . 7 . 34 . 18 . . . 1 2 . 2 . . . 1 1 . . . 1 . 1 8 . Investigation 30 | . 1 . . 1 4 . . . 10 . 10 . . . . . . 2 . . . . 1 . . . 1 . . . . Extermination 25 | . . . . . . . 4 . 12 . 7 . . . . . . . . . . . . . . . . . 1 1 . Reinforcement 15 | . . . . . . . 2 . 6 . 1 . . . . 2 . . . . . . . . . . . . . 4 . Assault 3 | . . . . . . . 1 . . . . . . . 1 . . . . . . 1 . . . . . . . . . Garrison 9 | . . . . . . . . . 6 . . . . . . . . . . . . . . . . . . . . 3 . Intercept . | . . . . . . . . . . . . . . . . . . . . . . . . . . . . . . . . Construction Impeded 2 | . . . . . . . . . . . . . . . . 1 . . . . . . . . . . . . . 1 . Haulers Reinforced 5 | . . . . . . . . . 3 . . . . . . 1 . . . . . . . . . . . . . 1 . Stealth | -11 -10 -10 -10 -9 -8 -8 -7 -7 -7 -7 -7 -7 -7 -7 -6 -6 -6 -6 -6 -6 -6 -5 -5 -5 -5 -5 -4 -3 -2 -1 -1 --------- Run | Scr Mat Min Exi Min Mat Gar Fac Was Fac Gar Fac Low Low Dat Pro Fac Gar Fac Low Low Zio Pro Fac Was Fac Gar Fac Res Res Acc Gar Distress Signals 14 | . . . . . 3 . 2 . 2 . 2 . . . . 1 . 1 . . . . 2 . . . . . . 1 . Communications Jammed 80 | . . . . . . . 2 . 77 . 1 . . . . . . . . . . . . . . . . . . . . Distress Signals 78 | . . . . . . . 2 . 75 . 1 . . . . . . . . . . . . . . . . . . . . Times Spotted 621 | . 7 3 . 4 31 48 29 10 84 31 60 14 11 4 24 14 11 10 7 18 86 16 10 6 . 12 8 3 26 19 15 Peak Tracking Total 11 | . 5 2 . 2 4 6 6 6 9 6 4 6 3 4 9 5 5 5 2 7 8 11 7 4 . 6 7 3 11 5 9 Tactical Retreats 59 | . 1 1 . . . 11 2 1 3 . 5 2 1 . 1 2 3 1 2 7 6 2 1 . . 1 . . 2 4 . Traps | -11 -10 -10 -10 -9 -8 -8 -7 -7 -7 -7 -7 -7 -7 -7 -6 -6 -6 -6 -6 -6 -6 -5 -5 -5 -5 -5 -4 -3 -2 -1 -1 ------- Run | Scr Mat Min Exi Min Mat Gar Fac Was Fac Gar Fac Low Low Dat Pro Fac Gar Fac Low Low Zio Pro Fac Was Fac Gar Fac Res Res Acc Gar Traps Triggered 35 | . . . . . 3 2 3 . 12 6 . . . . . . 4 1 . . . . 1 . . 1 . . . 1 1 Indirectly 7 | . . . . . . . . . 6 . . . . . . . 1 . . . . . . . . . . . . . . Trap Hack Attempts . | . . . . . . . . . . . . . . . . . . . . . . . . . . . . . . . . Triggered . | . . . . . . . . . . . . . . . . . . . . . . . . . . . . . . . . Disarmed 23 | . . . . . 6 . . . 14 . . . . . . . . . . . . . . . . . . 3 . . . Reprogrammed 70 | . . . . . . . . . 22 . 41 . . . . . . 7 . . . . . . . . . . . . . Reused 8 | . . . . . . . . . 3 . 4 . . . . . . . . 1 . . . . . . . . . . . Traps Extracted 1 | . . . . . . . . . . . . . . . . . . 1 . . . . . . . . . . . . . Installed 7 | . . . . 4 . . . . . . . . . . . . . 1 . 2 . . . . . . . . . . . Triggered 11 | . . . . . . . . . 3 . 4 . . . . . . . . 3 . 1 . . . . . . . . . Machines | -11 -10 -10 -10 -9 -8 -8 -7 -7 -7 -7 -7 -7 -7 -7 -6 -6 -6 -6 -6 -6 -6 -5 -5 -5 -5 -5 -4 -3 -2 -1 -1 ---------- Run | Scr Mat Min Exi Min Mat Gar Fac Was Fac Gar Fac Low Low Dat Pro Fac Gar Fac Low Low Zio Pro Fac Was Fac Gar Fac Res Res Acc Gar Machines Disabled 99 | . . . . 2 . 12 . . 26 9 6 2 . . 2 . . 13 . 1 8 . 9 . . 5 . . 1 . 3 Max in Single Turn 15 | . . . . 2 . 2 . . 15 2 . 2 . . 2 . . 6 . 1 2 . 7 . . 1 . . 1 . 2 Garrison Access 4 | . . . . . . . 1 . . . 3 . . . . . . . . . . . . . . . . . . . . Garrison Relay 11 | . . . . . . 4 . . . 4 . . . . . . . . . . . . . . . 2 . . . . 1 Phase Generator 3 | . . . . . . 1 . . . 1 . . . . . . . . . . . . . . . 1 . . . . . Machines Sabotaged . | . . . . . . . . . . . . . . . . . . . . . . . . . . . . . . . . Garrisons Compromised . | . . . . . . . . . . . . . . . . . . . . . . . . . . . . . . . . Overloaded Fab Kills . | . . . . . . . . . . . . . . . . . . . . . . . . . . . . . . . . Fab Network Shutdowns 2 | . . . . . . . . . 1 . 1 . . . . . . . . . . . . . . . . . . . . Hacking | -11 -10 -10 -10 -9 -8 -8 -7 -7 -7 -7 -7 -7 -7 -7 -6 -6 -6 -6 -6 -6 -6 -5 -5 -5 -5 -5 -4 -3 -2 -1 -1 --------- Run | Scr Mat Min Exi Min Mat Gar Fac Was Fac Gar Fac Low Low Dat Pro Fac Gar Fac Low Low Zio Pro Fac Was Fac Gar Fac Res Res Acc Gar Machines Accessed 142 | . 3 . 1 1 17 . 17 . 35 . 38 . . 4 . 3 . 2 2 3 1 . 1 . 2 . 1 3 4 4 . Terminals 74 | . 2 . . . 12 . 10 . 17 . 19 . . . . 2 . 2 . . . . 1 . 1 . 1 2 2 3 . Fabricators 9 | . . . . . . . 1 . 3 . 5 . . . . . . . . . . . . . . . . . . . . Repair Stations 6 | . . . . . . . 2 . 2 . 1 . . . . . . . . . . . . . . . . 1 . . . Recycling Units 17 | . 1 . . . 2 . 1 . 6 . 6 . . . . . . . . . . . . . . . . . 1 . . Scanalyzers 12 | . . . . . 2 . 1 . 4 . 4 . . . . . . . . . . . . . . . . . 1 . . Garrison Access 12 | . . . . . 1 . 2 . 3 . 3 . . . . 1 . . . . . . . . 1 . . . . 1 . Total Hacks 755 | . 8 . 1 1 94 . 94 . 236 . 210 . . 28 . 4 . 11 2 4 4 . 3 . 4 . 4 10 11 26 . Successful 673 | . 7 . 1 1 83 . 83 . 209 . 202 . . 28 . 2 . 5 2 4 4 . . . 2 . 1 8 10 21 . Failed 82 | . 1 . . . 11 . 11 . 27 . 8 . . . . 2 . 6 . . . . 3 . 2 . 3 2 1 5 . Catastrophic 7 | . . . . . . . . . 1 . 1 . . . . 2 . 2 . . . . . . . . . . . 1 . Database Lockouts . | . . . . . . . . . . . . . . . . . . . . . . . . . . . . . . . . Manual 462 | . 7 . 1 . 64 . 49 . 126 . 157 . . . . 3 . 9 . . 7 . 3 . . . 4 6 8 18 . Terminals 486 | . 7 . . . 68 . 54 . 147 . 147 . . . . 3 . 11 . . . . 3 . 3 . 4 9 8 22 . Fabricators 39 | . . . . . . . 3 . 17 . 19 . . . . . . . . . . . . . . . . . . . . Repair Stations 12 | . . . . . . . 6 . 4 . 1 . . . . . . . . . . . . . . . . 1 . . . Recycling Units 56 | . 1 . . . 8 . 3 . 21 . 21 . . . . . . . . . . . . . . . . . 2 . . Scanalyzers 71 | . . . . . 12 . 22 . 30 . 6 . . . . . . . . . . . . . . . . . 1 . . Garrison Access 51 | . . . . . 6 . 6 . 17 . 16 . . . . 1 . . . . . . . . 1 . . . . 4 . Terminal Hacks 331 | . 4 . 1 1 41 . 24 . 98 . 100 . . 28 . . . 4 2 4 4 . . . 1 . . 5 3 11 . Record 16 | . . . . . . . . . . . . . . 11 . . . . . 3 . . . . . . . 1 . 1 . Part Schematic 105 | . . . . . 2 . 3 . 43 . 45 . . 8 . . . . . . 4 . . . . . . . . . . Robot Schematic 30 | . . . . . . . 1 . 9 . 14 . . 6 . . . . . . . . . . . . . . . . . Robot Analysis 24 | . . . . . 17 . 3 . 4 . . . . . . . . . . . . . . . . . . . . . . Prototype ID Bank 21 | . . . . . 4 . 3 . 5 . 6 . . 3 . . . . . . . . . . . . . . . . . Open Door 4 | . . . . 1 . . . . . . . . . . . . . . 2 1 . . . . . . . . . . . Level Access Points 5 | . . . . . . . . . . . 1 . . . . . . . . . . . . . 1 . . 1 1 1 . Branch Access Points 6 | . 1 . . . . . 1 . 1 . 1 . . . . . . 1 . . . . . . . . . . . 1 . Emergency Access Points 4 | . . . . . . . 1 . 1 . 1 . . . . . . . . . . . . . . . . 1 . . . Machine Index 1 | . . . . . . . . . . . . . . . . . . . . . . . . . . . . . . 1 . Terminal Index 5 | . 1 . . . 1 . 1 . 1 . 1 . . . . . . . . . . . . . . . . . . . . Fabricator Index 3 | . . . . . . . 1 . 1 . 1 . . . . . . . . . . . . . . . . . . . . Repair Station Index 1 | . . . . . . . . . . . 1 . . . . . . . . . . . . . . . . . . . . Recycling Unit Index 4 | . 1 . . . 1 . 1 . . . 1 . . . . . . . . . . . . . . . . . . . . Scanalyzer Index 2 | . . . . . 1 . . . . . 1 . . . . . . . . . . . . . . . . . . . . Garrison Index 4 | . . . . . 1 . 1 . 1 . 1 . . . . . . . . . . . . . . . . . . . . Alert Level 1 | . . . . . 1 . . . . . . . . . . . . . . . . . . . . . . . . . . Unreport Threat 10 | . . . . . 3 . 1 . 4 . 2 . . . . . . . . . . . . . . . . . . . . Locate Traps 17 | . 1 . . . 2 . 1 . 6 . 3 . . . . . . . . . . . . . . . . 1 1 2 . Disarm Traps 7 | . . . . . 1 . 1 . 3 . 1 . . . . . . . . . . . . . . . . 1 . . . Reprogram Traps 23 | . . . . . . . . . 9 . 11 . . . . . . 3 . . . . . . . . . . . . . Dispatch Records 1 | . . . . . . . . . . . 1 . . . . . . . . . . . . . . . . . . . . Security Status 1 | . . . . . . . . . 1 . . . . . . . . . . . . . . . . . . . . . . Extermination Status 1 | . . . . . . . . . 1 . . . . . . . . . . . . . . . . . . . . . . Recall Investigation 3 | . . . . . . . . . 2 . . . . . . . . . . . . . . . . . . . . 1 . Recall Extermination 2 | . . . . . . . . . . . 1 . . . . . . . . . . . . . . . . . . 1 . Recall Reinforcements 1 | . . . . . . . . . . . . . . . . . . . . . . . . . . . . . . 1 . Recall Assault 1 | . . . . . . . . . . . . . . . . . . . . . . . . . . . . . . 1 . Hauler Manifests 2 | . . . . . 1 . 1 . . . . . . . . . . . . . . . . . . . . . . . . Registered Components 3 | . . . . . . . 1 . 1 . 1 . . . . . . . . . . . . . . . . . . . . Registered Prototypes 2 | . . . . . . . . . 1 . 1 . . . . . . . . . . . . . . . . . . . . Zone Layout 20 | . . . . . 6 . 3 . 4 . 5 . . . . . . . . . . . . . . . . . 1 1 . EX-Prototype ID Bank 1 | . . . 1 . . . . . . . . . . . . . . . . . . . . . . . . . . . . Fabricator Hacks 20 | . . . . . . . 1 . 12 . 7 . . . . . . . . . . . . . . . . . . . . Network Status 2 | . . . . . . . 1 . 1 . . . . . . . . . . . . . . . . . . . . . . Load Schematic 8 | . . . . . . . . . 5 . 3 . . . . . . . . . . . . . . . . . . . . Build 10 | . . . . . . . . . 6 . 4 . . . . . . . . . . . . . . . . . . . . Repair Station Hacks 6 | . . . . . . . 4 . 2 . . . . . . . . . . . . . . . . . . . . . . Scan Component 3 | . . . . . . . 2 . 1 . . . . . . . . . . . . . . . . . . . . . . Repair 3 | . . . . . . . 2 . 1 . . . . . . . . . . . . . . . . . . . . . . Recycling Unit Hacks 37 | . . . . . 5 . 1 . 14 . 16 . . . . . . . . . . . . . . . . . 1 . . Process 4 | . . . . . . . . . 1 . 3 . . . . . . . . . . . . . . . . . . . . Report Inventory 19 | . . . . . 2 . 1 . 6 . 9 . . . . . . . . . . . . . . . . . 1 . . Retrieve Matter 4 | . . . . . 1 . . . 2 . 1 . . . . . . . . . . . . . . . . . . . . Retrieve Components 10 | . . . . . 2 . . . 5 . 3 . . . . . . . . . . . . . . . . . . . . Scanalyzer 59 | . . . . . 9 . 22 . 26 . 2 . . . . . . . . . . . . . . . . . . . . Insert Component 28 | . . . . . 5 . 10 . 12 . 1 . . . . . . . . . . . . . . . . . . . . Analyze 31 | . . . . . 4 . 12 . 14 . 1 . . . . . . . . . . . . . . . . . . . . Garrison Access Hacks 16 | . . . . . 1 . . . 4 . 8 . . . . 1 . . . . . . . . 1 . . . . 1 . Unlock Access 6 | . . . . . 1 . . . 2 . . . . . . 1 . . . . . . . . 1 . . . . 1 . Seal Access 3 | . . . . . . . . . . . 3 . . . . . . . . . . . . . . . . . . . . Coupler Status 7 | . . . . . . . . . 2 . 5 . . . . . . . . . . . . . . . . . . . . Unauthorized Hacks 204 | . 3 . . . 27 . 31 . 53 . 69 . . . . 1 . 1 . . . . . . . . 1 3 6 9 . Terminals 122 | . 2 . . . 17 . 21 . 28 . 39 . . . . 1 . 1 . . . . . . . . 1 2 4 6 . Track 15 | . . . . . 1 . 2 . 5 . 4 . . . . . . . . . . . . . . . . . 1 2 . Assimilate 22 | . . . . . 2 . 7 . 1 . 11 . . . . . . . . . . . . . . . . 1 . . . Botnet 61 | . 1 . . . 12 . 10 . 15 . 18 . . . . 1 . . . . . . . . . . 1 1 . 2 . Detonate 5 | . . . . . . . . . 1 . 1 . . . . . . 1 . . . . . . . . . . 1 1 . Disrupt 6 | . 1 . . . . . . . 3 . 1 . . . . . . . . . . . . . . . . . 1 . . Operators 13 | . . . . . 2 . 2 . 3 . 4 . . . . . . . . . . . . . . . . . 1 1 . Fabricators 18 | . . . . . . . 2 . 4 . 12 . . . . . . . . . . . . . . . . . . . . Report 4 | . . . . . . . 1 . . . 3 . . . . . . . . . . . . . . . . . . . . Prioritize 5 | . . . . . . . . . 2 . 3 . . . . . . . . . . . . . . . . . . . . Siphon 5 | . . . . . . . . . 2 . 3 . . . . . . . . . . . . . . . . . . . . Haulers 4 | . . . . . . . 1 . . . 3 . . . . . . . . . . . . . . . . . . . . Repair Stations 6 | . . . . . . . 2 . 2 . 1 . . . . . . . . . . . . . . . . 1 . . . Mechanics 6 | . . . . . . . 2 . 2 . 1 . . . . . . . . . . . . . . . . 1 . . . Recycling Units 18 | . 1 . . . 3 . 2 . 6 . 5 . . . . . . . . . . . . . . . . . 1 . . Monitor 1 | . . . . . . . 1 . . . . . . . . . . . . . . . . . . . . . . . . Recyclers 3 | . . . . . 1 . 1 . . . . . . . . . . . . . . . . . . . . . 1 . . Tunnel 14 | . 1 . . . 2 . . . 6 . 5 . . . . . . . . . . . . . . . . . . . . Scanalyzers 9 | . . . . . 2 . . . 2 . 4 . . . . . . . . . . . . . . . . . 1 . . Researchers 1 | . . . . . . . . . . . . . . . . . . . . . . . . . . . . . 1 . . Extract 8 | . . . . . 2 . . . 2 . 4 . . . . . . . . . . . . . . . . . . . . Garrison Access 31 | . . . . . 5 . 4 . 11 . 8 . . . . . . . . . . . . . . . . . . 3 . Broadcast 6 | . . . . . 1 . 2 . 1 . 1 . . . . . . . . . . . . . . . . . . 1 . Reprogram 16 | . . . . . 2 . 1 . 7 . 5 . . . . . . . . . . . . . . . . . . 1 . Intercept 3 | . . . . . 1 . . . 1 . 1 . . . . . . . . . . . . . . . . . . . . Watchers 6 | . . . . . 1 . 1 . 2 . 1 . . . . . . . . . . . . . . . . . . 1 . Data Cores Recovered . | . . . . . . . . . . . . . . . . . . . . . . . . . . . . . . . . Used . | . . . . . . . . . . . . . . . . . . . . . . . . . . . . . . . . Hacking Detections 100 | . 2 . . . 16 . 12 . 31 . 24 . . . . 2 . 2 . . . . 1 . 2 . 1 2 2 3 . Full Trace Events 6 | . . . . . . . . . 2 . . . . . . . . 2 . . . . 1 . . . 1 . . . . Feedback Events 1 | . . . . . . . . . 1 . . . . . . . . . . . . . . . . . . . . . . Hackware Fried 1 | . . . . . . . . . 1 . . . . . . . . . . . . . . . . . . . . . . Feedback Blocked . | . . . . . . . . . . . . . . . . . . . . . . . . . . . . . . . . Robot Schematics Acquired 30 | . . . . . . . 1 . 9 . 14 . . 6 . . . . . . . . . . . . . . . . . Robots Built 2 | . . . . . . . . . 2 . . . . . . . . . . . . . . . . . . . . . . Matter 328 | . . . . . . . . . 328 . . . . . . . . . . . . . . . . . . . . . . Time 38 | . . . . . . . . . 38 . . . . . . . . . . . . . . . . . . . . . . Total Robot Build Rating 6 | . . . . . . . . . 6 . . . . . . . . . . . . . . . . . . . . . . Part Schematics Acquired 153 | . . . . . 17 . 13 . 58 . 53 . . 8 . . . . . . 4 . . . . . . . . . . Parts Built 10 | . . . . . . . . . 6 . 4 . . . . . . . . . . . . . . . . . . . . Matter 1021 | . . . . . . . . . 578 . 443 . . . . . . . . . . . . . . . . . . . . Time 223 | . . . . . . . . . 151 . 72 . . . . . . . . . . . . . . . . . . . . Total Part Build Rating 48 | . . . . . . . . . 26 . 22 . . . . . . . . . . . . . . . . . . . . Parts Repaired 3 | . . . . . . . 2 . 1 . . . . . . . . . . . . . . . . . . . . . . Time 113 | . . . . . . . 70 . 43 . . . . . . . . . . . . . . . . . . . . . . Parts Recycled . | . . . . . . . . . . . . . . . . . . . . . . . . . . . . . . . . Recycled Matter 797 | . . . . . . . . . 241 . 556 . . . . . . . . . . . . . . . . . . . . Retrieved Matter 658 | . . . . . 228 . . . 430 . . . . . . . . . . . . . . . . . . . . . . Retrieved Components 74 | . . . . . 18 . . . 34 . 22 . . . . . . . . . . . . . . . . . . . . Parts Scanalyzed 27 | . . . . . 4 . 10 . 12 . 1 . . . . . . . . . . . . . . . . . . . . Part Schematics Acquired 26 | . . . . . 4 . 10 . 11 . 1 . . . . . . . . . . . . . . . . . . . . Parts Damaged 2 | . . . . . . . 2 . . . . . . . . . . . . . . . . . . . . . . . . Bothacking | -11 -10 -10 -10 -9 -8 -8 -7 -7 -7 -7 -7 -7 -7 -7 -6 -6 -6 -6 -6 -6 -6 -5 -5 -5 -5 -5 -4 -3 -2 -1 -1 ------------ Run | Scr Mat Min Exi Min Mat Gar Fac Was Fac Gar Fac Low Low Dat Pro Fac Gar Fac Low Low Zio Pro Fac Was Fac Gar Fac Res Res Acc Gar Used RIF Installer 4 | . . . . . . 1 . . . 1 . . . . . . 1 . . . . . . . . 1 . . . . . Command Fork 1 | . . . . . . . . . . . . . . . . . 1 . . . . . . . . . . . . . . Threat Obfuscator 1 | . . . . . . . . . . 1 . . . . . . . . . . . . . . . . . . . . . Autoassimilate 1 | . . . . . . . . . . . . . . . . . . . . . . . . . . 1 . . . . . Robots Hacked 62 | . . . . . 7 . 2 . 17 10 7 . . . 1 . . . . . . 1 1 . . 1 . . 7 8 . Non-combat 15 | . . . . . 7 . 2 . 2 . . . . . . . . . . . . . 1 . . . . . 1 2 . Combat 47 | . . . . . . . . . 15 10 7 . . . 1 . . . . . . 1 . . . 1 . . 6 6 . Autoassimilated 2 | . . . . . . . . . . . . . . . . . . . . . . . . . . 1 . . . 1 . Robot Hacks Applied 63 | . . . . . 7 . 3 . 19 10 7 . . . 1 . . . . . . 1 1 . . . . . 7 7 . parse_system 6 | . . . . . . . . . 1 . 2 . . . 1 . . . . . . 1 . . . . . . 1 . . no_distress 13 | . . . . . 7 . 3 . 2 . . . . . . . . . . . . . 1 . . . . . . . . disrupt_area 1 | . . . . . . . . . 1 . . . . . . . . . . . . . . . . . . . . . . spike_heat 4 | . . . . . . . . . 3 1 . . . . . . . . . . . . . . . . . . . . . overload_power 3 | . . . . . . . . . 3 . . . . . . . . . . . . . . . . . . . . . . amplify_resonance 1 | . . . . . . . . . 1 . . . . . . . . . . . . . . . . . . . . . . go_dormant 2 | . . . . . . . . . 1 . . . . . . . . . . . . . . . . . . . . 1 . formatsys_low 1 | . . . . . . . . . . . . . . . . . . . . . . . . . . . . . . 1 . formatsys_high 32 | . . . . . . . . . 7 9 5 . . . . . . . . . . . . . . . . . 6 5 . Relay Couplers Released 20 | . . . . . . 7 1 . . 7 1 . . . . . . . . . . . . . . 2 . . . . 2 Machine Destruction 20 | . . . . . . 7 1 . . 7 1 . . . . . . . . . . . . . . 2 . . . . 2 Attached 12 | . . . . . . 2 . . 1 5 1 . . . . . 1 . . . . . . . . 1 . . . . 1 Robots Rewired 17 | . . . . . . . . . . 9 . 2 1 1 2 . . . . . . 2 . . . . . . . . . Allies Hacked 1 | . . . . . . . . . 1 . . . . . . . . . . . . . . . . . . . . . . Hacks Repelled . | . . . . . . . . . . . . . . . . . . . . . . . . . . . . . . . . Allies | -11 -10 -10 -10 -9 -8 -8 -7 -7 -7 -7 -7 -7 -7 -7 -6 -6 -6 -6 -6 -6 -6 -5 -5 -5 -5 -5 -4 -3 -2 -1 -1 -------- Run | Scr Mat Min Exi Min Mat Gar Fac Was Fac Gar Fac Low Low Dat Pro Fac Gar Fac Low Low Zio Pro Fac Was Fac Gar Fac Res Res Acc Gar Total Allies 109 | . . . . . 2 . 1 18 20 18 20 2 1 1 2 . . . . 1 . 2 . 1 . 1 . . 7 12 . Largest Group 21 | . . . . . 2 1 2 18 18 14 21 2 3 3 3 2 . . . 1 1 2 . 1 . 1 1 . 3 4 . Highest-Rated Group 456 | . . . . . 31 10 35 446 446 333 456 48 64 105 147 117 . . . 99 99 79 . 31 . 29 25 . 207 232 . Highest-Rated Ally 99 | . . . . . 21 10 26 35 38 38 38 32 32 94 94 87 . . . 99 99 49 . 31 . 29 25 . 69 58 . Total Orders 32 | . . . . . . 4 2 . 4 2 16 . . . . . . . . . . . . . . . . . . 3 1 STAY 15 | . . . . . . 2 1 . 2 1 8 . . . . . . . . . . . . . . . . . . 1 . FOLLOW 14 | . . . . . . 2 1 . 2 1 8 . . . . . . . . . . . . . . . . . . . . EXPLORE 2 | . . . . . . . . . . . . . . . . . . . . . . . . . . . . . . 1 1 RETURN 1 | . . . . . . . . . . . . . . . . . . . . . . . . . . . . . . 1 . Ally Attacks 677 | . . . . . 1 . . . 285 92 105 7 15 13 27 5 . . . 1 57 2 . 8 . 10 . . 22 27 . Total Damage 16106 | . . . . . 22 . . . 5239 1734 1855 147 310 319 879 77 . . . 15 3248 81 . 143 . 151 . . 978 908 . Kills 159 | . . . . . . . . . 49 14 22 2 4 1 10 1 . . . 1 41 . . . . 6 . . 4 4 . Allies Corrupted 4 | . . . . . . . . . 3 . . . . . 1 . . . . . . . . . . . . . . . . Allies Melted . | . . . . . . . . . . . . . . . . . . . . . . . . . . . . . . . . Intel | -11 -10 -10 -10 -9 -8 -8 -7 -7 -7 -7 -7 -7 -7 -7 -6 -6 -6 -6 -6 -6 -6 -5 -5 -5 -5 -5 -4 -3 -2 -1 -1 ------- Run | Scr Mat Min Exi Min Mat Gar Fac Was Fac Gar Fac Low Low Dat Pro Fac Gar Fac Low Low Zio Pro Fac Was Fac Gar Fac Res Res Acc Gar Robot Analysis Total 24 | . . . . . 17 . 3 . 4 . . . . . . . . . . . . . . . . . . . . . . Derelict Logs Recovered 9 | . . . . . . . . . . . . 1 1 . 1 . . . 1 2 1 2 . . . . . . . . . Drone Launches 19 | . . . . . . . . . . . . . . . . . . . . . . . . . . . . . . 14 5 Drone Recoveries 11 | . . . . . . . . . . . . . . . . . . . . . . . . . . . . . . 11 . Exploration | -11 -10 -10 -10 -9 -8 -8 -7 -7 -7 -7 -7 -7 -7 -7 -6 -6 -6 -6 -6 -6 -6 -5 -5 -5 -5 -5 -4 -3 -2 -1 -1 ------------- Run | Scr Mat Min Exi Min Mat Gar Fac Was Fac Gar Fac Low Low Dat Pro Fac Gar Fac Low Low Zio Pro Fac Was Fac Gar Fac Res Res Acc Gar Turns Passed 32821 | 9 56 92 281 1137 1251 1184 2248 539 5528 1220 5821 1520 1391 367 1265 226 368 260 932 2140 1199 798 443 151 54 316 278 241 551 709 246 Spaces Moved 27942 | 18 111 183 558 1131 1083 966 1798 458 4584 866 5185 1312 1228 186 1051 145 262 215 883 1863 892 691 405 127 51 191 248 181 384 531 155 Core 904 | 18 111 183 558 34 . . . . . . . . . . . . . . . . . . . . . . . . . . . Treads . | . . . . . . . . . . . . . . . . . . . . . . . . . . . . . . . . Legs . | . . . . . . . . . . . . . . . . . . . . . . . . . . . . . . . . Wheels 27038 | . . . . 1097 1083 966 1798 458 4584 866 5185 1312 1228 186 1051 145 262 215 883 1863 892 691 405 127 51 191 248 181 384 531 155 Hover . | . . . . . . . . . . . . . . . . . . . . . . . . . . . . . . . . Flight . | . . . . . . . . . . . . . . . . . . . . . . . . . . . . . . . . Fastest Speed 50 | 50 50 50 50 50 80 80 86 100 95 100 100 100 100 100 100 110 110 100 100 100 100 100 100 100 100 100 100 100 100 100 100 Average Speed 97 | 50 50 50 50 83 81 81 93 100 101 103 100 100 100 100 108 110 110 107 100 100 102 100 100 100 100 100 100 100 100 100 100 Slowest Speed 110 | 50 50 50 50 90 90 90 100 100 110 110 100 100 100 100 110 110 110 110 100 100 110 100 100 100 100 100 100 100 110 100 100 Overloaded Moves . | . . . . . . . . . . . . . . . . . . . . . . . . . . . . . . . . Propulsion Burnouts . | . . . . . . . . . . . . . . . . . . . . . . . . . . . . . . . . Robots Hopped 1 | . . . . . 1 . . . . . . . . . . . . . . . . . . . . . . . . . . Cave-ins Triggered . | . . . . . . . . . . . . . . . . . . . . . . . . . . . . . . . . Exploration Rate (%) 58 | 4 26 53 91 98 90 94 38 96 87 93 83 99 99 81 98 8 55 12 93 98 90 66 18 83 4 40 9 6 19 24 25 Regions Visited 31 Branch Regions 11 Pre-discovered Areas 17 | . 1 1 . . 2 . . . 6 . 5 . . 1 1 . . . . . . . . . . . . . . . . Known Exits Taken 23 | 1 1 1 1 1 1 . . . 1 . 1 1 1 1 1 1 . 1 1 1 1 1 . . 1 . 1 1 1 1 . Unknown Exits Taken . | . . . . . . . . . . . . . . . . . . . . . . . . . . . . . . . . Scrap Searched 27 | . . . . . . . . . . . . 4 4 . 3 . . . 2 10 2 2 . . . . . . . . . Spaces Dug 147 | . . . . . . . 14 . 16 . 8 . 1 . . 1 . . . 1 5 . 52 . 1 1 5 7 15 20 . Terrain Destroyed 1509 | . . . . 34 . 93 14 54 109 243 10 1 1 . 1 12 1 114 3 2 128 28 165 108 1 161 14 7 39 28 138 Melee 76 | . . . . . . . 14 . 15 . 8 . . . . 1 . . . 1 . . . . 1 1 5 7 15 8 . Projectile 11 | . . . . . . . . . 2 . 2 1 1 . 1 . 1 . 2 1 . . . . . . . . . . . AOE 1422 | . . . . 34 . 93 . 54 92 243 . . . . . 11 . 114 1 . 128 28 165 108 . 160 9 . 24 20 138 Terrain Rammed . | . . . . . . . . . . . . . . . . . . . . . . . . . . . . . . . . Walls Destroyed . | . . . . . . . . . . . . . . . . . . . . . . . . . . . . . . . . Machines Disabled . | . . . . . . . . . . . . . . . . . . . . . . . . . . . . . . . . Actions | -11 -10 -10 -10 -9 -8 -8 -7 -7 -7 -7 -7 -7 -7 -7 -6 -6 -6 -6 -6 -6 -6 -5 -5 -5 -5 -5 -4 -3 -2 -1 -1 --------- Run | Scr Mat Min Exi Min Mat Gar Fac Was Fac Gar Fac Low Low Dat Pro Fac Gar Fac Low Low Zio Pro Fac Was Fac Gar Fac Res Res Acc Gar Total 32050 | 17 110 182 559 1271 1356 1210 2228 512 5261 1109 5653 1474 1347 352 1131 181 319 232 917 2075 1044 776 423 140 52 278 264 220 495 645 217 Wait 1590 | . . . . 18 103 58 183 17 310 67 205 102 75 136 18 . . . . 115 27 45 . . . 14 1 23 31 33 9 Move 27915 | 17 110 182 557 1130 1081 965 1798 457 4584 864 5184 1311 1227 185 1050 145 261 214 882 1862 891 690 405 126 51 190 247 180 383 531 155 Hop 1 | . . . . . 1 . . . . . . . . . . . . . . . . . . . . . . . . . . Pick Up 196 | . . . . 19 15 8 27 6 35 12 32 . . 2 1 . . 2 2 4 3 2 . 2 . 1 2 3 7 8 3 Fast Attach 28 | . . . 1 9 1 4 . . 4 1 7 . 1 . . . . . . . . . . . . . . . . . . Attach 136 | . . . . 9 20 7 18 1 30 10 10 . . . 1 . 2 1 1 1 6 2 . 3 . 1 2 1 3 5 2 Detach 42 | . . . 1 . 8 5 12 . 10 . 1 . . . . . . . . . 3 . . . . . . . 2 . . Swap 105 | . . . . 8 3 6 18 1 18 11 10 1 . 7 5 . . 2 . . . . . . . . . 1 3 7 4 Drop 189 | . . . . 17 9 10 24 3 39 15 37 . 1 3 1 . 2 2 1 3 4 1 . . . . 2 . 6 6 3 Fire 750 | . . . . 28 44 103 89 27 87 41 58 12 9 4 23 25 21 7 9 19 48 6 18 9 . 10 2 . 16 15 20 Melee 518 | . . . . 15 40 23 28 . 70 22 68 23 24 4 12 1 . 3 4 30 50 12 . . 1 17 8 12 23 26 2 Ram 1 | . . . . . . . . . . . 1 . . . . . . . . . . . . . . . . . . . . Kick . | . . . . . . . . . . . . . . . . . . . . . . . . . . . . . . . . Crush . | . . . . . . . . . . . . . . . . . . . . . . . . . . . . . . . . Escape Stasis 83 | . . . . . . . . . 8 24 . . . . . . 33 . . . . . . . . 8 . . . 2 8 Rewire 17 | . . . . . . . . . 3 6 2 . . . . . . . . . . . . . . 1 . . 4 1 . Trap 7 | . . . . 4 . . . . . . . . . . . . . 1 . 2 . . . . . . . . . . . Miscellaneous 472 | . . . . 14 31 21 31 . 63 36 38 25 10 11 20 10 . . 18 39 12 18 . . . 36 . . 17 11 11 Route ------- -11/Scrapyard -10/Materials (discovered 2 exits: *Mat / *Min) -10/Mines -10/Exiles -9/Mines (discovered 2 exits: *Mat x2) -8/Materials (discovered 5 exits: *Fac x3 / *Sto / Gar) -8/Garrison (discovered 3 exits: *Fac x3) -7/Factory (discovered 4 exits: *Fac x2 / Low x2) -7/Waste -7/Factory (discovered 8 exits: *Fac x4 / *Low x2 / Gar / Gar) -7/Garrison (discovered 3 exits: *Fac x3) -7/Factory (discovered 6 exits: *Fac x4 / *Low x2) -7/Lower Caves -7/Lower Caves (discovered 2 exits: *Fac / *Dat) -7/Data Miner -6/Proximity Caves -6/Factory -6/Garrison (discovered 3 exits: *Fac x3) -6/Factory (discovered 3 exits: Fac / *Low x2) -6/Lower Caves -6/Lower Caves (discovered 2 exits: *Fac / *Zio) -6/Zion (discovered 2 exits: *Dee / *Pro) -5/Proximity Caves -5/Factory -5/Waste -5/Factory (discovered 5 exits: Fac x4 / Gar) -5/Garrison -4/Factory (discovered 2 exits: *Res / Ext) -3/Research (discovered 3 exits: *Res x3) -2/Research (discovered 4 exits: *Acc x3 / Tes) -1/Access (discovered 3 exits: Sur / Com / Gar) -1/Garrison History --------- Turn | Location | Event 4 | -11/Scrapyard | Identified exit to Materials 4 | -11/Scrapyard | Discovered exit to Materials (range 13) 10 | -11/Scrapyard | Entered Materials 13 | -10/Materials | Identified exit to Mines 37 | -10/Materials | Identified exit to Materials 37 | -10/Materials | Discovered exit to Materials (range 9) 66 | -10/Materials | Entered Mines 67 | -10/Mines | Assembled infested the area 81 | -10/Mines | Met a Derelict bent on vengeance 114 | -10/Mines | Learned location of Storage (-8) 156 | -10/Mines | Identified exit to Exiles 156 | -10/Mines | Discovered exit to Exiles (range 5) 158 | -10/Mines | Entered Exiles 170 | -10/Exiles | Met 8R-AWN 180 | -10/Exiles | Met EX-HEX 196 | -10/Exiles | Met EX-BIN 203 | -10/Exiles | Aligned with FarCom system 204 | -10/Exiles | Given EX-Vault access code 232 | -10/Exiles | Opened EX-Vault 235 | -10/Exiles | Found Field Lobotomy Kit 236 | -10/Exiles | Upgraded with Power slot (x1) 236 | -10/Exiles | Upgraded with Propulsion slot (x1) 236 | -10/Exiles | Upgraded with Utility slot (x2) 236 | -10/Exiles | Upgraded with Weapon slot (x1) 252 | -10/Exiles | Warned to stay clear of 0b10 Research branches 277 | -10/Exiles | Met EX-DEC 304 | -10/Exiles | Visited The Gauntlet 314 | -10/Exiles | Build established: Hacker-Mutant 433 | -10/Exiles | Identified exit to Mines 433 | -10/Exiles | Discovered exit to Mines (range 14) 439 | -10/Exiles | Left Exiles lab with Field Lobotomy Kit 439 | -10/Exiles | Entered Mines 441 | -9/Mines | Reached level 2 442 | -9/Mines | Upgraded with Utility slot (x1) 451 | -9/Mines | Identified exit to Materials 451 | -9/Mines | Discovered exit to Materials (range 9) 664 | -9/Mines | Reached level 3 693 | -9/Mines | Met a Derelict shopkeep closing up shop 709 | -9/Mines | Upgraded with Propulsion slot (x2) 939 | -9/Mines | Found a hidden stash of uninstalled traps 1194 | -9/Mines | Found a damaged Exp. Sensor Array with a note attached 1196 | -9/Mines | Found Prototype Device 1196 | -9/Mines | Identified Exp. Sensor Array 1206 | -9/Mines | A weapon hastily lodged in a ceiling crevice suddenly fell to the ground 1289 | -9/Mines | Discovered exit to Materials (range 15) 1331 | -9/Mines | Build established: Hacker-Assassin 1576 | -9/Mines | Entered Materials 1578 | -8/Materials | Reached level 4 1578 | -8/Materials | Reached level 5 1578 | -8/Materials | Reached level 6 1578 | -8/Materials | Upgraded with Utility slot (x1) 1578 | -8/Materials | Upgraded with Weapon slot (x2) 1820 | -8/Materials | Identified exit to Factory 1820 | -8/Materials | Discovered exit to Factory (range 15) 2028 | -8/Materials | Reached level 7 2030 | -8/Materials | Upgraded with Utility slot (x1) 2141 | -8/Materials | Discovered exit to Factory (range 4) 2238 | -8/Materials | Identified exit to Storage 2238 | -8/Materials | Discovered exit to Storage (range 15) 2417 | -8/Materials | Reached level 8 2506 | -8/Materials | Discovered exit to Factory (range 10) 2827 | -8/Materials | Identified exit to Garrison 2827 | -8/Materials | Entered Garrison 2827 | -8/Garrison | Accompanied by 1 ally 2827 | -8/Garrison | Reached level 9 2864 | -8/Garrison | Triggered checkpoint 2905 | -8/Garrison | Garrison Relay disabled 3004 | -8/Garrison | Triggered checkpoint 3048 | -8/Garrison | Triggered checkpoint 3070 | -8/Garrison | Reached level 10 3084 | -8/Garrison | Triggered checkpoint 3096 | -8/Garrison | Triggered checkpoint 3245 | -8/Garrison | Discovered exit to Factory (range 10) 3265 | -8/Garrison | Triggered checkpoint 3283 | -8/Garrison | Reached level 11 3288 | -8/Garrison | Upgraded with Utility slot (x1) 3300 | -8/Garrison | Garrison Relay disabled 3363 | -8/Garrison | Triggered checkpoint 3420 | -8/Garrison | Discovered exit to Factory (range 11) 3425 | -8/Garrison | Destroyed 8 combat bots 3466 | -8/Garrison | Phase Generator disabled 3515 | -8/Garrison | Build established: Scavenger-Assassin 3521 | -8/Garrison | Garrison Relay disabled 3540 | -8/Garrison | Triggered checkpoint 3548 | -8/Garrison | Reached level 12 3561 | -8/Garrison | Triggered checkpoint 3600 | -8/Garrison | Triggered checkpoint 3755 | -8/Garrison | Discovered exit to Factory (range 6) 3776 | -8/Garrison | Installed Relay Interface Framework 3806 | -8/Garrison | Triggered checkpoint 3831 | -8/Garrison | Build established: Hacker-Assassin 3846 | -8/Garrison | Garrison Relay disabled 4011 | -8/Garrison | Entered Factory 4011 | -7/Factory | Accompanied by 1 ally 4013 | -7/Factory | Reached level 13 4014 | -7/Factory | Upgraded with Utility slot (x1) 4092 | -7/Factory | Found Rocket Array 4297 | -7/Factory | Identified exit to Lower Caves 4508 | -7/Factory | Identified exit to Factory 4508 | -7/Factory | Discovered exit to Factory (range 11) 4544 | -7/Factory | Reached level 14 4801 | -7/Factory | Discovered exit to Factory (range 16) 4884 | -7/Factory | Repaired Hvy. Armor Plating 4918 | -7/Factory | Repaired Arm. Wheel 5279 | -7/Factory | Core integrity fell below 50% 5321 | -7/Factory | Core integrity fell below 20% 6074 | -7/Factory | Reached level 15 6259 | -7/Factory | Sucked down chute 6259 | -7/Factory | Entered Waste 6268 | -7/Waste | Spotted C-40 Crusher 6272 | -7/Waste | Spotted C-40 Crusher 6292 | -7/Waste | Spotted C-40 Crusher 6312 | -7/Waste | Spotted C-40 Crusher 6317 | -7/Waste | Spotted C-40 Crusher 6330 | -7/Waste | Spotted C-40 Crusher 6398 | -7/Waste | Identified exit to Factory 6398 | -7/Waste | Discovered exit to Factory (range 10) 6419 | -7/Waste | Destroyed C-40 Crusher 6434 | -7/Waste | Destroyed C-40 Crusher 6436 | -7/Waste | Destroyed C-40 Crusher 6445 | -7/Waste | Destroyed C-40 Crusher 6464 | -7/Waste | Destroyed C-40 Crusher 6464 | -7/Waste | Destroyed C-40 Crusher 6492 | -7/Waste | Warlord forces began an assault 6798 | -7/Waste | Entered Factory 6798 | -7/Factory | Accompanied by 18 allies 6798 | -7/Factory | Upgraded with Utility slot (x1) 7358 | -7/Factory | Repaired Broken Adv. Transmission Jammer? 7652 | -7/Factory | Reached level 16 7938 | -7/Factory | Allied Derelicts emerged from ambush trap array 8047 | -7/Factory | Identified exit to Garrison 8267 | -7/Factory | Garrison activated, responded to threat 8373 | -7/Factory | Fabricated System Backup Module? 8549 | -7/Factory | System Shield fried by hacking feedback 8644 | -7/Factory | Garrison activated, responded to threat 8670 | -7/Factory | Reached level 17 8675 | -7/Factory | Build established: Hacker-Gladiator 9173 | -7/Factory | Discovered exit to Factory (range 10) 9491 | -7/Factory | Discovered exit to Factory (range 19) 9808 | -7/Factory | Discovered exit to Factory (range 12) 10192 | -7/Factory | Fabricated O-24 Administrator (x1) 10211 | -7/Factory | Fabricated O-24 Administrator (x1) 10280 | -7/Factory | Upgraded with Utility slot (x1) 10372 | -7/Factory | Fabricated Imp. System Shield (x1) 10397 | -7/Factory | Fabricated Imp. System Shield (x1) 10421 | -7/Factory | Fabricated Arm. Huge Wheel (x2) 10500 | -7/Factory | Local fabrication network quarantined 11049 | -7/Factory | Discovered exit to Factory (range 19) 11676 | -7/Factory | Build established: Wizard-Gladiator 11870 | -7/Factory | Found Rocket Array 12164 | -7/Factory | P-60 Hacker assimilated allied Trooper 4c 12263 | -7/Factory | Identified exit to Garrison 12326 | -7/Factory | Entered Garrison 12326 | -7/Garrison | Accompanied by 6 allies 12328 | -7/Garrison | Reached level 18 12372 | -7/Garrison | Triggered checkpoint 12412 | -7/Garrison | Garrison Relay disabled 12465 | -7/Garrison | Identified exit to Factory 12465 | -7/Garrison | Discovered exit to Factory (range 21) 12470 | -7/Garrison | Triggered checkpoint 12472 | -7/Garrison | Triggered checkpoint 12477 | -7/Garrison | Triggered checkpoint 12598 | -7/Garrison | Triggered checkpoint 12657 | -7/Garrison | Garrison Relay disabled 12707 | -7/Garrison | Phase Generator disabled 12771 | -7/Garrison | Triggered checkpoint 12822 | -7/Garrison | Discovered exit to Factory (range 11) 12847 | -7/Garrison | Expanded RIF knowledge: Threat Obfuscation 12872 | -7/Garrison | Triggered checkpoint 12889 | -7/Garrison | Garrison Relay disabled 13029 | -7/Garrison | Discovered exit to Factory (range 14) 13050 | -7/Garrison | Triggered checkpoint 13158 | -7/Garrison | Garrison Relay disabled 13194 | -7/Garrison | Triggered checkpoint 13202 | -7/Garrison | Triggered checkpoint 13304 | -7/Garrison | Triggered checkpoint 13543 | -7/Garrison | Build established: Commander-Assassin 13546 | -7/Garrison | Entered Factory 13546 | -7/Factory | Accompanied by 11 allies 15113 | -7/Factory | Build established: Wizard-Assassin 15455 | -7/Factory | Build established: Wizard-Gladiator 17090 | -7/Factory | Reached level 19 17524 | -7/Factory | Fabricated Imp. System Shield (x1) 17656 | -7/Factory | Fabricated Lance (x2) 17767 | -7/Factory | Local fabrication network quarantined 17784 | -7/Factory | Fabricated Adv. Melee Analysis Suite (x1) 17948 | -7/Factory | Build established: Wizard-Assassin 18863 | -7/Factory | Build established: Hacker-Assassin 19367 | -7/Factory | Entered Lower Caves 19367 | -7/Lower Caves | Accompanied by 2 allies 19719 | -7/Lower Caves | Learned 4 Factory zone layouts 19742 | -7/Lower Caves | Attacked by a delusional Derelict stockpiling parts 19901 | -7/Lower Caves | Encountered a Warlord checkpoint 20064 | -7/Lower Caves | Identified exit to Lower Caves 20064 | -7/Lower Caves | Discovered exit to Lower Caves (range 8) 20083 | -7/Lower Caves | Attracted the attention of an 0b10 outpost 20887 | -7/Lower Caves | Entered another Lower Caves area 20887 | -7/Lower Caves | Accompanied by 2 allies 21047 | -7/Lower Caves | Discovered exit to Factory (range 9) 21361 | -7/Lower Caves | Learned Factory security intel 21465 | -7/Lower Caves | Encountered a Warlord checkpoint 22062 | -7/Lower Caves | Identified exit to Data Miner 22062 | -7/Lower Caves | Discovered exit to Data Miner (range 17) 22196 | -7/Lower Caves | Attracted the attention of an 0b10 outpost 22278 | -7/Lower Caves | Entered Data Miner 22278 | -7/Data Miner | Accompanied by 3 allies 22278 | -7/Data Miner | Identified exit to Proximity Caves 22278 | -7/Data Miner | Discovered exit to Proximity Caves (range 6) 22295 | -7/Data Miner | Met Data Miner 22318 | -7/Data Miner | Learned location of Section 7 (-2) 22318 | -7/Data Miner | Acquired the access code to Warlord's prototype stash 22385 | -7/Data Miner | Received God Mode back door access code from Data Miner 22557 | -7/Data Miner | Data Conduit disabled 22645 | -7/Data Miner | Entered Proximity Caves 22645 | -6/Proximity Caves | Accompanied by 2 allies 22806 | -6/Proximity Caves | Spotted B-75 Beast 22816 | -6/Proximity Caves | Allies destroyed B-75 Beast 22965 | -6/Proximity Caves | Attracted the attention of an 0b10 outpost 23021 | -6/Proximity Caves | Reached level 20 23114 | -6/Proximity Caves | Discovered exit to Factory (range 23) 23910 | -6/Proximity Caves | Entered Factory 23910 | -6/Factory | Accompanied by 2 allies 23985 | -6/Factory | Core integrity fell below 50% 24077 | -6/Factory | Destroyed 7 combat bots 24136 | -6/Factory | Identified exit to Garrison 24136 | -6/Factory | Entered Garrison 24142 | -6/Garrison | Expanded RIF knowledge: Command Fork 24190 | -6/Garrison | Triggered checkpoint 24190 | -6/Garrison | Triggered checkpoint 24277 | -6/Garrison | Identified exit to Factory 24277 | -6/Garrison | Discovered exit to Factory (range 16) 24376 | -6/Garrison | Discovered exit to Factory (range 18) 24479 | -6/Garrison | Discovered exit to Factory (range 20) 24504 | -6/Garrison | Entered Factory 24586 | -6/Factory | Spotted B-75 Beast 24683 | -6/Factory | Core integrity fell below 20% 24689 | -6/Factory | Identified exit to Lower Caves 24716 | -6/Factory | Identified exit to Factory 24716 | -6/Factory | Discovered exit to Factory (range 23) 24764 | -6/Factory | Entered Lower Caves 24765 | -6/Lower Caves | Encountered a Warlord checkpoint 24768 | -6/Lower Caves | Learned Factory trap positions 24783 | -6/Lower Caves | Found Prototype Device 24784 | -6/Lower Caves | Identified Heart of Steel 25192 | -6/Lower Caves | Identified exit to Lower Caves 25192 | -6/Lower Caves | Discovered exit to Lower Caves (range 23) 25696 | -6/Lower Caves | Entered another Lower Caves area 25698 | -6/Lower Caves | Reached level 21 25734 | -6/Lower Caves | Discovered exit to Factory (range 24) 25766 | -6/Lower Caves | Encountered a Warlord checkpoint 25889 | -6/Lower Caves | Learned 4 Factory zone layouts 26063 | -6/Lower Caves | Attracted the attention of an 0b10 checkpoint 26158 | -6/Lower Caves | Found Alien Artifact 26262 | -6/Lower Caves | Learned 4 Factory zone layouts 26812 | -6/Lower Caves | Identified exit to Zion 26812 | -6/Lower Caves | Discovered exit to Zion (range 20) 27053 | -6/Lower Caves | Learned Extension emergency access door positions 27640 | -6/Lower Caves | Heart of Steel transformed into Warbot 27836 | -6/Lower Caves | Entered Zion 27836 | -6/Zion | Accompanied by 1 ally (Warbot) 27875 | -6/Zion | Identified exit to Proximity Caves 27875 | -6/Zion | Discovered exit to Proximity Caves (range 24) 27983 | -6/Zion | RIF detected upon attempting to enter Zion 27983 | -6/Zion | Attacked by Zionites 27983 | -6/Zion | Spotted ZW-IU0(B) 27983 | -6/Zion | Spotted EC-40L(B) 28012 | -6/Zion | Allies destroyed EC-40L(B) 28021 | -6/Zion | Allies destroyed ZW-IU0(B) 28096 | -6/Zion | Allies destroyed Imprinter 28102 | -6/Zion | Extracted access codes from Imprinter's data core 28401 | -6/Zion | Identified exit to Deep Caves 28401 | -6/Zion | Discovered exit to Deep Caves (range 21) 28421 | -6/Zion | Opened final containment barrier to the Deep Caves 28441 | -6/Zion | Saw the warning signs outside the Deep Caves entrance 28504 | -6/Zion | Found Prototype Device 28505 | -6/Zion | Identified Phasing AFG 29035 | -6/Zion | Entered Proximity Caves 29035 | -5/Proximity Caves | Identified Dimensional Node Initializer 29035 | -5/Proximity Caves | Initialized slip node 29428 | -5/Proximity Caves | Learned Factory emergency access door positions 29491 | -5/Proximity Caves | Learned Factory stockpile data 29512 | -5/Proximity Caves | Attracted the attention of an 0b10 checkpoint 29792 | -5/Proximity Caves | Attracted the attention of an 0b10 outpost 29805 | -5/Proximity Caves | Discovered exit to Factory (range 20) 29833 | -5/Proximity Caves | Entered Factory 29834 | -5/Factory | Identified exit to Upper Caves 29834 | -5/Factory | Core integrity fell below 50% 29835 | -5/Factory | Loaded intel: 102 trap records 29835 | -5/Factory | Reached level 22 30276 | -5/Factory | Sucked down chute 30276 | -5/Factory | Entered Waste 30277 | -5/Waste | Met a frightened Derelict 30287 | -5/Waste | Spotted C-40 Crusher 30296 | -5/Waste | Destroyed C-40 Crusher 30308 | -5/Waste | Spotted C-40 Crusher 30308 | -5/Waste | Spotted C-40 Crusher 30309 | -5/Waste | Spotted C-40 Crusher 30309 | -5/Waste | Spotted C-40 Crusher 30330 | -5/Waste | Destroyed C-40 Crusher 30361 | -5/Waste | Spotted C-40 Crusher 30406 | -5/Waste | Identified exit to Factory 30406 | -5/Waste | Discovered exit to Factory (range 12) 30427 | -5/Waste | Entered Factory 30461 | -5/Factory | Identified exit to Factory 30481 | -5/Factory | Identified exit to Garrison 30481 | -5/Factory | Entered Garrison 30486 | -5/Garrison | Expanded RIF knowledge: Autoassimilate 30518 | -5/Garrison | Triggered checkpoint 30533 | -5/Garrison | Garrison Relay disabled 30666 | -5/Garrison | Discovered exit to Factory (range 22) 30690 | -5/Garrison | Phase Generator disabled 30710 | -5/Garrison | Triggered checkpoint 30755 | -5/Garrison | Garrison Relay disabled 30797 | -5/Garrison | Entered Factory 30797 | -4/Factory | Accompanied by 1 ally 30799 | -4/Factory | Reached level 23 30878 | -4/Factory | Spotted B-86 Titan 30961 | -4/Factory | Identified exit to Extension 30961 | -4/Factory | Discovered exit to Extension (range 19) 31017 | -4/Factory | Identified exit to Research 31017 | -4/Factory | Discovered exit to Research (range 24) 31075 | -4/Factory | Entered Research 31077 | -3/Research | Reached level 24 31077 | -3/Research | Reached level 25 31138 | -3/Research | Identified exit to Research 31316 | -3/Research | Entered another Research area 31318 | -2/Research | Reached level 26 31383 | -2/Research | Build established: Wizard-Assassin 31387 | -2/Research | Identified exit to Access 31513 | -2/Research | Reached level 27 31552 | -2/Research | Destroyed 9 combat bots 31691 | -2/Research | Found Prototype Device 31821 | -2/Research | Identified Exp. Shock Absorption System 31842 | -2/Research | Identified exit to Testing 31842 | -2/Research | Discovered exit to Testing (range 23) 31867 | -2/Research | Entered Access 31869 | -1/Access | Reached level 28 31869 | -1/Access | Reached level 29 31911 | -1/Access | Identified exit to Command 31959 | -1/Access | Identified exit to Surface 31990 | -1/Access | Core integrity fell below 50% 32075 | -1/Access | Core integrity fell below 20% 32114 | -1/Access | Reached level 30 32159 | -1/Access | Garrison activated, responded to threat 32576 | -1/Access | Identified exit to Garrison 32576 | -1/Access | Entered Garrison 32578 | -1/Garrison | Reached level 31 32672 | -1/Garrison | Triggered checkpoint 32713 | -1/Garrison | Garrison Relay disabled 32796 | -1/Garrison | Triggered checkpoint 32798 | -1/Garrison | Spotted B-99 Colossus 32803 | -1/Garrison | Triggered checkpoint 32822 | -1/Garrison | Destroyed by G-73 Enforcer with Phase Gun Last Messages --------------- 32805_ Destroyed Hvy. Laser. 32806_ Drone released from Drone Bay. 32806_ The unstable cave ceiling collapses. 32807_ Drone released from Drone Bay. 32808_ The unstable cave ceiling collapses. 32808_ Drone destroyed. 32808_ Slug penetrates Wall. 32810_ Drone destroyed. 32810_ G-73 Enforcer destroyed. 32811_ S-43 Plague destroyed. 32811_ G-73 Enforcer destroyed. 32811_ Drone destroyed. 32812_ The unstable cave ceiling collapses. 32812_ Slug penetrates Wall. 32816_ G-73 Enforcer destroyed. 32817_ Penetrated by Slug. 32818_ The unstable cave ceiling collapses. 32822_ Slug penetrates D-83 Annihilator. 32822_ Penetrated by Slug. 32822_ Slug penetrates Earth. Map ----- +----------------------------------------------------+ | ??????????????????????#??? ?#?#### ############?# | | ???????????????????##??? ?## #?#? #?### ###### | | ????????????????????#### ? ## #### #####"?"##### | | ??????????????????#??### ??? # | | ??????????????????????##? ## #### | | ??????????????? ??""""## #### ##### ##### | | ???????????????? ? ####### ####"""""#### | | ???????????????? ? ############# | | ????????????? ############## | | ????????????# # ###################### | | ??????????### # # #### ################## | | ?????????#?s" # ################## | | ????????###s" ##################### | | ?????????##s" BB ##################### | | ????????###s" %BB % ##################### | | ??????####### ## % ####################### | | ????#?####### # % # #################### | | ????######### g ############## #### | | ???#?### # s s i%g ######### # # ## | | ???##### #### sss d ######### # # | | ?? ##### ##### ## # ######### # # # | | ????#### ###?# ## ## * # | | ?? ?#### ?#### ####### ########## # [ # | | ?#?# ? # ###### ######## ## # ## | | ?# ##### ##### ###### ##### # # | | ?#?##### ##### ##### @ #### ## ## # | | ?#??#### ##### ###### #### # # ## | | ?#?########### ##### | | ?? ? ###### | | ? ss ###### | | ?#?##### ############## ######### #### | | ?#######s############## ### # #### | | ???###?#s################ ### # #### | | ?####### ################# # ##### #### | | ??######?################## #### | | ?# ##################### #### | | ???############################ ## # ######## | | ??#??###?#####################""" "#### ######## | | ????#?############################################ | | ????##?########################################### | | ???############################################### | | ??????############################################ | | ????#?############################################ | | ?????############################################# | | ???????#?######################################### | | ?????????######################################### | | ??????????######################################## | | ???????????####################################### | | ??????????#?###################################### | | ????????????###################################### | +----------------------------------------------------+ Best States ------------- Heat Dissipation 76 Coolant Potential 65 Energy Generation 51 Energy Capacity 840 Matter Stores 355 Matter Capacity 400 Sight Range 24 Robot Scan Range 30 Terrain Scan Range 24 Terrain Scan Density 935 ECM Strength 3 Jamming Range 8 Cloak Strength 2 Heat Shielding 75 Armor Coverage 825 Resistance: KI 65 Resistance: TH 55 Resistance: EX 100 Resistance: EM 35 Resistance: I 35 Resistance: S 35 Resistance: P 35 Utility Shielding 90 Point Defense Rating 160 Evasion (%) 50 Targeting Accuracy 16 Melee Accuracy 20 Particle Charging 25 Offensive Hacking 55 Defensive Hacking 56 Relay Coupler Types 373 Relay Coupler Value 5 Item Schematics ----------------- Remote Datajack | -8/Materials | Scanalyzed Chainsword | -8/Materials | Scanalyzed Wheel | -8/Materials | Scanalyzed Hacking Suite | -8/Materials | Hacked System Shield | -8/Materials | Hacked Lgt. Angular Momentum Engine | -8/Materials | Scanalyzed Maul | -8/Materials | Extracted Cesium-ion Thruster | -8/Materials | Extracted Melee Analysis Suite | -8/Materials | Extracted Shock Rifle | -8/Materials | Extracted Salvage Targeting Computer | -8/Materials | Extracted Aerolev Unit | -8/Materials | Extracted Particle Charger | -8/Materials | Extracted Imp. Weapon Shielding | -8/Materials | Extracted Imp. Terrain Scan Processor | -8/Materials | Extracted Shield Generator | -8/Materials | Extracted Datajack | -8/Materials | Extracted Rocket Array | -7/Factory | Scanalyzed Arm. Wheel | -7/Factory | Scanalyzed Mic. Nuclear Core | -7/Factory | Scanalyzed Imp. EM Pulse Cannon | -7/Factory | Scanalyzed Plasma Cutter | -7/Factory | Scanalyzed Plasma Cannon | -7/Factory | Scanalyzed Exp. Sensor Array | -7/Factory | Scanalyzed Adv. Terrain Scanner | -7/Factory | Scanalyzed Transmission Jammer | -7/Factory | Scanalyzed Hvy. Armor Plating | -7/Factory | Scanalyzed System Backup Module | -7/Factory | Hacked Imp. Transmission Jammer | -7/Factory | Hacked Coil Gun | -7/Factory | Hacked Adv. Transmission Jammer | -7/Factory | Scanalyzed Cld. Airjet | -7/Factory | Extracted Gauss Cannon | -7/Factory | Extracted Hvy. Flail | -7/Factory | Extracted Hvy. Battle Rifle | -7/Factory | Scanalyzed Com. Battery | -7/Factory | Extracted Drone Bay | -7/Factory | Hacked Gyrokinetic Inverter | -7/Factory | Hacked Force Rifle | -7/Factory | Hacked Gauss Rifle | -7/Factory | Hacked Imp. Salvage Targeting Computer | -7/Factory | Hacked Imp. Sensor Array | -7/Factory | Hacked Imp. Shield Generator | -7/Factory | Hacked Imp. Signal Interpreter | -7/Factory | Hacked Imp. Reclamation Unit | -7/Factory | Hacked Arm. Huge Wheel | -7/Factory | Hacked Cld. Deuterium Engine | -7/Factory | Hacked Imp. Titanium Leg | -7/Factory | Hacked Imp. System Shield | -7/Factory | Hacked Imp. System Backup Module | -7/Factory | Hacked Arm. Medium Treads | -7/Factory | Hacked EM Shield | -7/Factory | Hacked Imp. Launcher Guidance Computer | -7/Factory | Hacked Cld. Particle Cannon | -7/Factory | Hacked Hvy. Beamcaster | -7/Factory | Scanalyzed Coolant Injector | -7/Factory | Scanalyzed Imp. Grenade Launcher | -7/Factory | Scanalyzed Greatsword | -7/Factory | Scanalyzed Med. Reactive Plating | -7/Factory | Scanalyzed Shock Absorption System | -7/Factory | Scanalyzed Com. Wheel | -7/Factory | Scanalyzed Component Analysis Suite | -7/Factory | Hacked Trap Extractor | -7/Factory | Hacked Med. Reflective Plating | -7/Factory | Hacked Med. Insulated Plating | -7/Factory | Hacked Reactive Plating | -7/Factory | Hacked Reflective Plating | -7/Factory | Hacked Insulated Plating | -7/Factory | Hacked Lrn. Terrain Scanner | -7/Factory | Scanalyzed Imp. Light Armor Plating | -7/Factory | Scanalyzed Spear | -7/Factory | Hacked Powered Hammer | -7/Factory | Hacked Power Maul | -7/Factory | Hacked Power Shielding | -7/Factory | Hacked Powered Armor | -7/Factory | Hacked Arc Projector | -7/Factory | Hacked Arm. Treads | -7/Factory | Hacked Armor Integrity Analyzer | -7/Factory | Hacked Scythe | -7/Factory | Hacked Great Axe | -7/Factory | Hacked Great Maul | -7/Factory | Hacked Grenade Launcher | -7/Factory | Hacked Rocket Launcher | -7/Factory | Hacked Missile Launcher | -7/Factory | Hacked Adv. Weight Redist. System | -7/Factory | Hacked Lrn. Sensor Array | -7/Factory | Hacked Imp. Heat Shielding | -7/Factory | Hacked Lance | -7/Factory | Hacked Adv. Heat Sink | -7/Factory | Hacked Matter Compressor | -7/Factory | Hacked Hvy. Ion Cannon | -7/Factory | Hacked Imp. Recalibrator | -7/Factory | Hacked KE Penetrator | -7/Factory | Hacked Beam Cannon | -7/Factory | Hacked Adv. Targeting Computer | -7/Factory | Extracted Imp. Proton Missile Launcher | -7/Factory | Hacked Cld. Ion Engine | -7/Factory | Hacked Plasma Rifle | -7/Factory | Hacked Imp. Kinecellerator | -7/Factory | Hacked Neutrino Core | -7/Factory | Hacked Beam Rifle | -7/Factory | Hacked Carbon-fiber Leg | -7/Factory | Hacked Com. Matter Pod | -7/Factory | Hacked Core Analyzer | -7/Factory | Hacked Cryofiber Web | -7/Factory | Hacked Cooling System | -7/Factory | Hacked Deuterium Engine | -7/Factory | Hacked Disposable Heat Sink | -7/Factory | Hacked Dynamic Insulation System | -7/Factory | Hacked ECM Suite | -7/Factory | Hacked Electrolaser | -7/Factory | Hacked EM Pulse Cannon | -7/Factory | Hacked EM Pulse Gun | -7/Factory | Hacked EM Shotgun | -7/Factory | Hacked EMP Blaster | -7/Factory | Hacked Energy Filter | -7/Factory | Hacked Enh. Autogun | -7/Factory | Hacked Enh. Optical Array | -7/Factory | Hacked Field Recycling Unit | -7/Factory | Hacked Flail | -7/Factory | Hacked Flak Cannon | -7/Factory | Hacked Flak Gun | -7/Factory | Hacked Flight Unit | -7/Factory | Hacked Force Booster | -7/Factory | Hacked Gatling Laser | -7/Factory | Hacked Gravmag System | -7/Factory | Hacked Hammer | -7/Factory | Hacked Hardlight Generator | -7/Factory | Hacked Heat Shielding | -7/Factory | Hacked Heat Sink | -7/Factory | Hacked Hcp. Battery | -7/Factory | Hacked Hcp. Matter Pod | -7/Factory | Hacked Weight Redist. System | -7/Factory | Extracted Thermal Converter | -7/Factory | Extracted Adv. Signal Interpreter | -7/Factory | Extracted Recalibrator | -7/Factory | Scanalyzed Lyr. Light Armor Plating | -7/Factory | Extracted Imp. Cooling System | -7/Factory | Extracted Nuclear Core | -7/Factory | Extracted Adv. Melee Analysis Suite | -7/Factory | Hacked Imp. Armor Integrity Analyzer | -7/Factory | Hacked Combat Drone Bay | -7/Data Miner | Free Lgt. Regenerative Plating | -7/Data Miner | Free Triangulator | -7/Data Miner | Free Exp. Targeting Computer | -7/Data Miner | Free Tactical Coordination Suite | -7/Data Miner | Free Exp. Transmission Jammer | -7/Data Miner | Free Cloaking Device | -7/Data Miner | Free Kinetic Spear | -7/Data Miner | Free Beamcaster | -6/Zion | Free Riot Gun | -6/Zion | Free Hvy. Riot Gun | -6/Zion | Free Battle Rifle | -6/Zion | Free Robot Schematics ------------------ Y-45 Defender | -7/Factory | Hacked T-07 Excavator | -7/Factory | Hacked G-47 Trooper | -7/Factory | Hacked G-34 Mercenary | -7/Factory | Hacked H-55 Commando | -7/Factory | Hacked Y-54 Guardian | -7/Factory | Hacked S-27 Virus | -7/Factory | Hacked O-24 Administrator | -7/Factory | Hacked B-48 Gladiator | -7/Factory | Hacked R-06 Scavenger | -7/Factory | Hacked P-60 Hacker | -7/Factory | Hacked O-16 Technician | -7/Factory | Hacked S-10 Pest | -7/Factory | Hacked M-14 Sweeper | -7/Factory | Hacked X-62 Marksman | -7/Factory | Hacked M-28 Smith | -7/Factory | Hacked M-13 Machinist | -7/Factory | Hacked L-41 Fighter | -7/Factory | Hacked L-31 Rogue | -7/Factory | Hacked K-01 Serf | -7/Factory | Hacked I-36 Angel | -7/Factory | Hacked I-25 Savior | -7/Factory | Hacked D-53 Grenadier | -7/Factory | Hacked A-02 Transporter | -7/Factory | Hacked G-50 Soldier | -7/Data Miner | Free G-67 Veteran | -7/Data Miner | Free X-72 Disruptor | -7/Data Miner | Free H-66 Slayer | -7/Data Miner | Free P-70 Sage | -7/Data Miner | Free I-47 Archangel | -7/Data Miner | Free Fabricated ------------ System Backup Module | x2 | -7/Factory O-24 Administrator | x1 | -7/Factory O-24 Administrator | x1 | -7/Factory Imp. System Shield | x1 | -7/Factory Imp. System Shield | x1 | -7/Factory Arm. Huge Wheel | x2 | -7/Factory Imp. System Shield | x1 | -7/Factory Lance | x2 | -7/Factory Adv. Melee Analysis Suite | x1 | -7/Factory Alien Tech Used ----------------- Dimensional Node Initializer Achievements -------------- Below It Was An Accident, I Swear Monster Challenges ------------ None RPGLIKE | -11 -10 -10 -10 -9 -8 -8 -7 -7 -7 -7 -7 -7 -7 -7 -6 -6 -6 -6 -6 -6 -6 -5 -5 -5 -5 -5 -4 -3 -2 -1 -1 --------- Run | Scr Mat Min Exi Min Mat Gar Fac Was Fac Gar Fac Low Low Dat Pro Fac Gar Fac Low Low Zio Pro Fac Was Fac Gar Fac Res Res Acc Gar Levels Raised 30 | . . . . 2 5 4 3 . 2 1 1 . . . 1 . . . . 1 . . 1 . . . 1 2 2 3 1 XP Earned 52173 | 6000 300 575 350 2256 8450 5597 3655 97 4090 812 1014 169 180 75 967 611 371 185 230 329 94 700 958 67 . 791 1520 2115 3498 4607 1510 XP Spent 50495 | . . . 6000 3000 7000 5000 3300 . 5610 . . . . 3000 1380 . . . . . . . 480 . . 1750 2450 2900 3000 4525 1100 Upgrades 84 | . . . 16 3 7 6 4 . 3 . . . . 7 6 . . . . . . . 8 . . 1 3 3 10 6 1 Power Slot 1 | . . . 1 . . . . . . . . . . . . . . . . . . . . . . . . . . . . Propulsion Slot 3 | . . . 1 2 . . . . . . . . . . . . . . . . . . . . . . . . . . . Utility Slot 9 | . . . 2 1 2 1 1 . 2 . . . . . . . . . . . . . . . . . . . . . . Weapon Slot 3 | . . . 1 . 2 . . . . . . . . . . . . . . . . . . . . . . . . . . Core Integrity 8 | . . . . . . . . . . . . . . . . . . . . . . . 8 . . . . . . . . Heat Dissipation 7 | . . . 1 . . 2 . . 1 . . . . 3 . . . . . . . . . . . . . . . . . Energy Generation 4 | . . . 1 . . . . . . . . . . 2 . . . . . . . . . . . . 1 . . . . Matter Storage 2 | . . . . . . . . . . . . . . . . . . . . . . . . . . . . . . 2 . Mass Support 3 | . . . 1 . . . . . . . . . . . . . . . . . . . . . . . 1 . . . 1 Inventory Capacity 7 | . . . 3 . 1 2 . . . . . . . . . . . . . . . . . . . 1 . . . . . Sight Range 4 | . . . . . . . 2 . . . . . . 2 . . . . . . . . . . . . . . . . . Terrain Scan Density 8 | . . . 1 . . 1 . . . . . . . . 6 . . . . . . . . . . . . . . . . Ranged Accuracy 2 | . . . 1 . 1 . . . . . . . . . . . . . . . . . . . . . . . . . . Hack Attack % 6 | . . . 2 . . . 1 . . . . . . . . . . . . . . . . . . . 1 1 . 1 . Hack Defense % 5 | . . . 1 . 1 . . . . . . . . . . . . . . . . . . . . . . 2 . 1 . KI Resistance % 4 | . . . . . . . . . . . . . . . . . . . . . . . . . . . . . 3 1 . TH Resistance % 4 | . . . . . . . . . . . . . . . . . . . . . . . . . . . . . 3 1 . EX Resistance % 4 | . . . . . . . . . . . . . . . . . . . . . . . . . . . . . 4 . . Protomatter Created 5749 | . . . . 166 563 377 369 199 542 230 754 267 180 . 335 223 77 75 135 296 134 139 36 . . 154 . 83 177 159 79 Integrity Restored 9718 | . . . . 297 581 448 663 . 1174 647 755 465 193 264 447 222 . . 405 865 267 417 . . . 819 . . 366 186 237 Core 7603 | . . . . 230 293 426 604 . 728 373 542 243 129 264 447 222 . . 405 405 267 417 . . . 819 . . 366 186 237 Parts 2115 | . . . . 67 288 22 59 . 446 274 213 222 64 . . . . . . 460 . . . . . . . . . . . Protomatter Decayed 5578 | . . 53 . 141 349 226 146 . 1405 304 724 140 248 . 367 94 129 . . 58 . 48 36 . . 24 . . 510 576 . Game ------ Seed FrostEnhancedCompressor Manual? 0 Play Time 10:57:49 Cumulative 117.1 hours Start 2021.05.26 @ 13:48:16 End 2021.05.27 @ 03:55:28 Sessions 1 Manual Loads 0 Difficulty Explorer Special Mode Winter2019/RPGLIKE Game No. 27 Rogue 12 Adventurer 0 Explorer 15 Win Type - Total 1 Types 0/0/1/0/0/0/0/0/0 Lore% 56 Gallery% 69 Achievement% 58 Wizard Run 0 Options --------- ASCII 0 Keyboard 0 Movement Mouse Keybinds 0 Fullscreen 2 Font 24/Proggy Map View 76x50 Tactical HUD 1 Map Filters NONE Filters NONE Steam 1 RUN: 243c9a6a-1259-40d0-9efe-c69015371008